﻿Department Family,Entity,Date,Expense Type,Expense Area,Supplier,Transaction Number,AP Amount,Supplier Postcode
Department of Health,NHS Sheffield CCG,31/05/2021,Clinical&Medical-Commercial Sector,PATIENT TRANSPORT,PREMIER CARE DIRECT LTD,36563949,112480.55,DN4 5NU
Department of Health,NHS Sheffield CCG,31/05/2021,C&M- PCN DES CARE COORDINATOR,PRC DELEGATED CO-COMMISSIONING,PRIMARY CARE SHEFFIELD LTD,36563952,16253.73,S9 4EU
Department of Health,NHS Sheffield CCG,31/05/2021,C&M-GMS C&M-APMS PCN DES Physician Assoc,PRC DELEGATED CO-COMMISSIONING,PRIMARY CARE SHEFFIELD LTD,36563952,4266.35,S9 4EU
Department of Health,NHS Sheffield CCG,31/05/2021,C&M-GMS PCN DES Clin Pharmacist,PRC DELEGATED CO-COMMISSIONING,PRIMARY CARE SHEFFIELD LTD,36563952,10421.59,S9 4EU
Department of Health,NHS Sheffield CCG,31/05/2021,C&M-GMS PCN DES Physiotherapist,PRC DELEGATED CO-COMMISSIONING,PRIMARY CARE SHEFFIELD LTD,36563952,4667.08,S9 4EU
Department of Health,NHS Sheffield CCG,31/05/2021,C&M-GMS PCN DES Soc Prescribing,PRC DELEGATED CO-COMMISSIONING,PRIMARY CARE SHEFFIELD LTD,36563952,5258.69,S9 4EU
Department of Health,NHS Sheffield CCG,31/05/2021,C&M-PCN DES PHARMACY TECHNICIANS,PRC DELEGATED CO-COMMISSIONING,PRIMARY CARE SHEFFIELD LTD,36563952,2741.69,S9 4EU
Department of Health,NHS Sheffield CCG,31/05/2021,C&M-GMS C&M-APMS PCN DES Physician Assoc,PRC DELEGATED CO-COMMISSIONING,PRIMARY CARE SHEFFIELD LTD,36563957,8539.18,S9 4EU
Department of Health,NHS Sheffield CCG,31/05/2021,C&M-GMS PCN DES Clin Pharmacist,PRC DELEGATED CO-COMMISSIONING,PRIMARY CARE SHEFFIELD LTD,36563957,13637.25,S9 4EU
Department of Health,NHS Sheffield CCG,31/05/2021,C&M-GMS PCN DES Physiotherapist,PRC DELEGATED CO-COMMISSIONING,PRIMARY CARE SHEFFIELD LTD,36563957,5103.89,S9 4EU
Department of Health,NHS Sheffield CCG,31/05/2021,C&M-GMS PCN DES Soc Prescribing,PRC DELEGATED CO-COMMISSIONING,PRIMARY CARE SHEFFIELD LTD,36563957,2333.33,S9 4EU
Department of Health,NHS Sheffield CCG,31/05/2021,C&M-GMS Prem Other,PRC DELEGATED CO-COMMISSIONING,NHS ENGLAND,36563962,4067.1,WF3 1WE
Department of Health,NHS Sheffield CCG,31/05/2021,Contract- Refuse & Clinical Waste,PRC DELEGATED CO-COMMISSIONING,NHS ENGLAND,36563962,50403.24,WF3 1WE
Department of Health,NHS Sheffield CCG,31/05/2021,C&M-GMS C&M-APMS PCN DES Physician Assoc,PRC DELEGATED CO-COMMISSIONING,PRIMARY CARE SHEFFIELD LTD,36563965,7827.34,S9 4EU
Department of Health,NHS Sheffield CCG,31/05/2021,C&M-GMS PCN DES Clin Pharmacist,PRC DELEGATED CO-COMMISSIONING,PRIMARY CARE SHEFFIELD LTD,36563965,7996.07,S9 4EU
Department of Health,NHS Sheffield CCG,31/05/2021,C&M-GMS PCN DES Physiotherapist,PRC DELEGATED CO-COMMISSIONING,PRIMARY CARE SHEFFIELD LTD,36563965,8347.68,S9 4EU
Department of Health,NHS Sheffield CCG,31/05/2021,C&M-GMS PCN DES Soc Prescribing,PRC DELEGATED CO-COMMISSIONING,PRIMARY CARE SHEFFIELD LTD,36563965,2671,S9 4EU
Department of Health,NHS Sheffield CCG,31/05/2021,C&M-GMS C&M-APMS PCN DES Physician Assoc,PRC DELEGATED CO-COMMISSIONING,PRIMARY CARE SHEFFIELD LTD,36563967,4355.7,S9 4EU
Department of Health,NHS Sheffield CCG,31/05/2021,C&M-GMS PCN DES Clin Pharmacist,PRC DELEGATED CO-COMMISSIONING,PRIMARY CARE SHEFFIELD LTD,36563967,7952.16,S9 4EU
Department of Health,NHS Sheffield CCG,31/05/2021,C&M-GMS PCN DES Home/RR paramedic,PRC DELEGATED CO-COMMISSIONING,PRIMARY CARE SHEFFIELD LTD,36563967,4813.36,S9 4EU
Department of Health,NHS Sheffield CCG,31/05/2021,C&M-GMS PCN DES Physiotherapist,PRC DELEGATED CO-COMMISSIONING,PRIMARY CARE SHEFFIELD LTD,36563967,4670.29,S9 4EU
Department of Health,NHS Sheffield CCG,31/05/2021,C&M-GMS PCN DES Soc Prescribing,PRC DELEGATED CO-COMMISSIONING,PRIMARY CARE SHEFFIELD LTD,36563967,4272.8,S9 4EU
Department of Health,NHS Sheffield CCG,31/05/2021,C&M-PCN DES OCCUPATIONAL THERAPISTS,PRC DELEGATED CO-COMMISSIONING,PRIMARY CARE SHEFFIELD LTD,36563967,4267.1,S9 4EU
Department of Health,NHS Sheffield CCG,31/05/2021,C&M-PCN DES PHARMACY TECHNICIANS,PRC DELEGATED CO-COMMISSIONING,PRIMARY CARE SHEFFIELD LTD,36563967,3009.5,S9 4EU
Department of Health,NHS Sheffield CCG,31/05/2021,Clinical&Medical-Independent Sector,Mental Health Services - S117 Mental Health,MOORVILLE RESIDENTIAL,36580186,29616.47,S10 5FA
Department of Health,NHS Sheffield CCG,31/05/2021,Cont Care-Learning Disab(<65),CHC ADULT FULLY FUNDED,MOORVILLE RESIDENTIAL,36580186,9171.66,S10 5FA
Department of Health,NHS Sheffield CCG,31/05/2021,Cont Care-Learning Disab(<65),CHC ADULT JOINT FUNDED,MOORVILLE RESIDENTIAL,36580186,4333.18,S10 5FA
Department of Health,NHS Sheffield CCG,31/05/2021,Cont Care-Mental Health (<65),CHC ADULT JOINT FUNDED,MOORVILLE RESIDENTIAL,36580186,506.23,S10 5FA
Department of Health,NHS Sheffield CCG,31/05/2021,Cont Care- Adult 100% Fully Funded,CHC ADULT FULLY FUNDED,SOUTH YORKSHIRE HOUSING ASSOCIATION LTD,36598487,25500,S1 4HF
Department of Health,NHS Sheffield CCG,31/05/2021,Cont Care- Adult 100% Fully Funded,CHC ADULT FULLY FUNDED,SOUTH YORKSHIRE HOUSING ASSOCIATION LTD,36598488,46763.59,S1 4HF
Department of Health,NHS Sheffield CCG,31/05/2021,Clinical&Medical-Independent Sector,MENTAL HEALTH CONTRACTS,SUSASH GB LTD T/A EAGLE HOUSE,36598489,30091.75,S11 8NP
Department of Health,NHS Sheffield CCG,31/05/2021,Clinical&Medical-Independent Sector,MENTAL HEALTH CONTRACTS,SOUTH YORKSHIRE HOUSING ASSOCIATION LTD,36598490,34434.83,S1 4HF
Department of Health,NHS Sheffield CCG,31/05/2021,Clinical&Medical-Independent Sector,ACUTE COMMISSIONING,SPAMEDICA LTD,36604402,113320.97,M15 4SQ
Department of Health,NHS Sheffield CCG,31/05/2021,Cont Care-Physical Disab (65+),CHC ADULT FULLY FUNDED,BC SHEFFIELD LTD,36619133,41696.43,S9 2TJ
Department of Health,NHS Sheffield CCG,31/05/2021,Hcare Srv Rec Fdtn Trust-Contract Baseline,ACUTE COMMISSIONING,CHESTERFIELD ROYAL HOSPITAL NHS FOUNDATION TRUST,36619228,33887.77,S44 5BL
Department of Health,NHS Sheffield CCG,31/05/2021,C&M-PMS Contract Value,PRC DELEGATED CO-COMMISSIONING,BARNSLEY ROAD SURGERY,36641123,21464.94,S5 0QJ
Department of Health,NHS Sheffield CCG,31/05/2021,C&M-PMS Funding Differential Review,PRC DELEGATED CO-COMMISSIONING,BARNSLEY ROAD SURGERY,36641123,506.44,S5 0QJ
Department of Health,NHS Sheffield CCG,31/05/2021,C&M-PMS Prem Notional Rent,PRC DELEGATED CO-COMMISSIONING,BARNSLEY ROAD SURGERY,36641123,2652.17,S5 0QJ
Department of Health,NHS Sheffield CCG,31/05/2021,C&M-PMS Prem Rates,PRC DELEGATED CO-COMMISSIONING,BARNSLEY ROAD SURGERY,36641123,1344.5,S5 0QJ
Department of Health,NHS Sheffield CCG,31/05/2021,C&M-PMS Prem Water Rates,PRC DELEGATED CO-COMMISSIONING,BARNSLEY ROAD SURGERY,36641123,36,S5 0QJ
Department of Health,NHS Sheffield CCG,31/05/2021,C&M-PMS QOF Aspiration,PRC DELEGATED CO-COMMISSIONING,BARNSLEY ROAD SURGERY,36641123,2433.92,S5 0QJ
Department of Health,NHS Sheffield CCG,31/05/2021,C&M-PMS Contract Value,PRC DELEGATED CO-COMMISSIONING,BIRLEY HEALTH CENTRE,36641125,67583.06,S12 3BP
Department of Health,NHS Sheffield CCG,31/05/2021,C&M-PMS Prem Notional Rent,PRC DELEGATED CO-COMMISSIONING,BIRLEY HEALTH CENTRE,36641125,7600.58,S12 3BP
Department of Health,NHS Sheffield CCG,31/05/2021,C&M-PMS QOF Aspiration,PRC DELEGATED CO-COMMISSIONING,BIRLEY HEALTH CENTRE,36641125,8434.07,S12 3BP
Department of Health,NHS Sheffield CCG,31/05/2021,C&M-PMS Contract Value,PRC DELEGATED CO-COMMISSIONING,BURNCROSS SURGERY,36641127,127123.64,S35 1RN
Department of Health,NHS Sheffield CCG,31/05/2021,C&M-PMS Funding Differential Review,PRC DELEGATED CO-COMMISSIONING,BURNCROSS SURGERY,36641127,2746.32,S35 1RN
Department of Health,NHS Sheffield CCG,31/05/2021,C&M-PMS Prem Notional Rent,PRC DELEGATED CO-COMMISSIONING,BURNCROSS SURGERY,36641127,14919.67,S35 1RN
Department of Health,NHS Sheffield CCG,31/05/2021,C&M-PMS QOF Aspiration,PRC DELEGATED CO-COMMISSIONING,BURNCROSS SURGERY,36641127,16515.27,S35 1RN
Department of Health,NHS Sheffield CCG,31/05/2021,C&M-PMS Contract Value,PRC DELEGATED CO-COMMISSIONING,BURNGREAVE SURGERY,36641129,59337.84,S3 9DA
Department of Health,NHS Sheffield CCG,31/05/2021,C&M-PMS PCO Locum Sickness,PRC DELEGATED CO-COMMISSIONING,BURNGREAVE SURGERY,36641129,4377.8,S3 9DA
Department of Health,NHS Sheffield CCG,31/05/2021,C&M-PMS PCO Other,PRC DELEGATED CO-COMMISSIONING,BURNGREAVE SURGERY,36641129,4436,S3 9DA
Department of Health,NHS Sheffield CCG,31/05/2021,C&M-PMS Prem Notional Rent,PRC DELEGATED CO-COMMISSIONING,BURNGREAVE SURGERY,36641129,6622.92,S3 9DA
Department of Health,NHS Sheffield CCG,31/05/2021,C&M-PMS Prem Rates,PRC DELEGATED CO-COMMISSIONING,BURNGREAVE SURGERY,36641129,4360.5,S3 9DA
Department of Health,NHS Sheffield CCG,31/05/2021,C&M-PMS QOF Aspiration,PRC DELEGATED CO-COMMISSIONING,BURNGREAVE SURGERY,36641129,5669.54,S3 9DA
Department of Health,NHS Sheffield CCG,31/05/2021,C&M-APMS Contract Value,PRC DELEGATED CO-COMMISSIONING,CLOVER GROUP PRACTICE,36641131,126289.47,S9 4QH
Department of Health,NHS Sheffield CCG,31/05/2021,C&M-APMS PCO Locum Sickness,PRC DELEGATED CO-COMMISSIONING,CLOVER GROUP PRACTICE,36641131,18974.16,S9 4QH
Department of Health,NHS Sheffield CCG,31/05/2021,C&M-APMS Prem Actual Rent,PRC DELEGATED CO-COMMISSIONING,CLOVER GROUP PRACTICE,36641131,5169.68,S9 4QH
Department of Health,NHS Sheffield CCG,31/05/2021,C&M-PMS Prem Healthcentre Rent,PRC DELEGATED CO-COMMISSIONING,CLOVER GROUP PRACTICE,36641131,49592.83,S9 4QH
Department of Health,NHS Sheffield CCG,31/05/2021,C&M-PMS Prem Notional Rent,PRC DELEGATED CO-COMMISSIONING,CLOVER GROUP PRACTICE,36641131,2804.17,S9 4QH
Department of Health,NHS Sheffield CCG,31/05/2021,C&M-PMS QOF Aspiration,PRC DELEGATED CO-COMMISSIONING,CLOVER GROUP PRACTICE,36641131,9952.23,S9 4QH
Department of Health,NHS Sheffield CCG,31/05/2021,C&M-PMS Contract Value,PRC DELEGATED CO-COMMISSIONING,DEEPCAR MEDICAL CENTRE,36641133,43351.63,S36 2RA
Department of Health,NHS Sheffield CCG,31/05/2021,C&M-PMS PCO Other,PRC DELEGATED CO-COMMISSIONING,DEEPCAR MEDICAL CENTRE,36641133,3522,S36 2RA
Department of Health,NHS Sheffield CCG,31/05/2021,C&M-PMS Prem Healthcentre Rent,PRC DELEGATED CO-COMMISSIONING,DEEPCAR MEDICAL CENTRE,36641133,30655.22,S36 2RA
Department of Health,NHS Sheffield CCG,31/05/2021,C&M-PMS QOF Aspiration,PRC DELEGATED CO-COMMISSIONING,DEEPCAR MEDICAL CENTRE,36641133,4646.77,S36 2RA
Department of Health,NHS Sheffield CCG,31/05/2021,C&M-PMS Contract Value,PRC DELEGATED CO-COMMISSIONING,DOVERCOURT SURGERY,36641135,79283.84,S2 5FX
Department of Health,NHS Sheffield CCG,31/05/2021,C&M-PMS PCO Other,PRC DELEGATED CO-COMMISSIONING,DOVERCOURT SURGERY,36641135,1104,S2 5FX
Department of Health,NHS Sheffield CCG,31/05/2021,C&M-PMS Prem Actual Rent,PRC DELEGATED CO-COMMISSIONING,DOVERCOURT SURGERY,36641135,14108.33,S2 5FX
Department of Health,NHS Sheffield CCG,31/05/2021,C&M-PMS Prem Rates,PRC DELEGATED CO-COMMISSIONING,DOVERCOURT SURGERY,36641135,8607.75,S2 5FX
Department of Health,NHS Sheffield CCG,31/05/2021,C&M-PMS QOF Aspiration,PRC DELEGATED CO-COMMISSIONING,DOVERCOURT SURGERY,36641135,8804.83,S2 5FX
Department of Health,NHS Sheffield CCG,31/05/2021,C&M-PMS Contract Value,PRC DELEGATED CO-COMMISSIONING,DR MEHROTRA & PARTNER,36641137,25228,S9 5DH
Department of Health,NHS Sheffield CCG,31/05/2021,C&M-PMS Funding Differential Review,PRC DELEGATED CO-COMMISSIONING,DR MEHROTRA & PARTNER,36641137,520.47,S9 5DH
Department of Health,NHS Sheffield CCG,31/05/2021,C&M-PMS Prem Notional Rent,PRC DELEGATED CO-COMMISSIONING,DR MEHROTRA & PARTNER,36641137,5157.29,S9 5DH
Department of Health,NHS Sheffield CCG,31/05/2021,C&M-PMS QOF Aspiration,PRC DELEGATED CO-COMMISSIONING,DR MEHROTRA & PARTNER,36641137,2907.99,S9 5DH
Department of Health,NHS Sheffield CCG,31/05/2021,C&M-PMS Contract Value,PRC DELEGATED CO-COMMISSIONING,DR MILNER & PARTNERS,36641138,-825.42,S6 4JQ
Department of Health,NHS Sheffield CCG,31/05/2021,C&M-PMS GP Statutory Levy,PRC DELEGATED CO-COMMISSIONING,DR MILNER & PARTNERS,36641138,-372.96,S6 4JQ
Department of Health,NHS Sheffield CCG,31/05/2021,C&M-PMS Out of Hours Opt Outs,PRC DELEGATED CO-COMMISSIONING,DR MILNER & PARTNERS,36641138,-3788.75,S6 4JQ
Department of Health,NHS Sheffield CCG,31/05/2021,C&M-PMS Contract Value,PRC DELEGATED CO-COMMISSIONING,DR MILNER & PARTNERS,36641139,80357.47,S6 4JQ
Department of Health,NHS Sheffield CCG,31/05/2021,C&M-PMS Prem Notional Rent,PRC DELEGATED CO-COMMISSIONING,DR MILNER & PARTNERS,36641139,15844.42,S6 4JQ
Department of Health,NHS Sheffield CCG,31/05/2021,C&M-PMS Prem Rates,PRC DELEGATED CO-COMMISSIONING,DR MILNER & PARTNERS,36641139,3888.25,S6 4JQ
Department of Health,NHS Sheffield CCG,31/05/2021,C&M-PMS QOF Aspiration,PRC DELEGATED CO-COMMISSIONING,DR MILNER & PARTNERS,36641139,7550.33,S6 4JQ
Department of Health,NHS Sheffield CCG,31/05/2021,C&M- PCN DES Nursing Associate,PRC DELEGATED CO-COMMISSIONING,DYKES HALL MEDICAL CENTRE,36641141,2237.64,S6 4GQ
Department of Health,NHS Sheffield CCG,31/05/2021,C&M-PCN DES PHARMACY TECHNICIANS,PRC DELEGATED CO-COMMISSIONING,DYKES HALL MEDICAL CENTRE,36641141,2949.08,S6 4GQ
Department of Health,NHS Sheffield CCG,31/05/2021,C&M-PMS Contract Value,PRC DELEGATED CO-COMMISSIONING,DYKES HALL MEDICAL CENTRE,36641141,74345.31,S6 4GQ
Department of Health,NHS Sheffield CCG,31/05/2021,C&M-PMS DES Extended Hours Access,PRC DELEGATED CO-COMMISSIONING,DYKES HALL MEDICAL CENTRE,36641141,4281.12,S6 4GQ
Department of Health,NHS Sheffield CCG,31/05/2021,C&M-PMS Funding Differential Review,PRC DELEGATED CO-COMMISSIONING,DYKES HALL MEDICAL CENTRE,36641141,1473.36,S6 4GQ
Department of Health,NHS Sheffield CCG,31/05/2021,C&M-PMS PCN DES Clin Pharmacist,PRC DELEGATED CO-COMMISSIONING,DYKES HALL MEDICAL CENTRE,36641141,16192.1,S6 4GQ
Department of Health,NHS Sheffield CCG,31/05/2021,C&M-PMS PCN DES Clinical Director,PRC DELEGATED CO-COMMISSIONING,DYKES HALL MEDICAL CENTRE,36641141,2188.13,S6 4GQ
Department of Health,NHS Sheffield CCG,31/05/2021,C&M-PMS PCN DES PCN support,LOCAL ENHANCED SERVICES,DYKES HALL MEDICAL CENTRE,36641141,4459.5,S6 4GQ
Department of Health,NHS Sheffield CCG,31/05/2021,C&M-PMS PCN DES Physiotherapist,PRC DELEGATED CO-COMMISSIONING,DYKES HALL MEDICAL CENTRE,36641141,6494.84,S6 4GQ
Department of Health,NHS Sheffield CCG,31/05/2021,C&M-PMS PCN DES Soc Prescribing,PRC DELEGATED CO-COMMISSIONING,DYKES HALL MEDICAL CENTRE,36641141,2949,S6 4GQ
Department of Health,NHS Sheffield CCG,31/05/2021,C&M-PMS PCO Locum Adop/Pat/Mat,PRC DELEGATED CO-COMMISSIONING,DYKES HALL MEDICAL CENTRE,36641141,7516.52,S6 4GQ
Department of Health,NHS Sheffield CCG,31/05/2021,C&M-PMS Prem Notional Rent,PRC DELEGATED CO-COMMISSIONING,DYKES HALL MEDICAL CENTRE,36641141,5406.25,S6 4GQ
Department of Health,NHS Sheffield CCG,31/05/2021,C&M-PMS QOF Aspiration,PRC DELEGATED CO-COMMISSIONING,DYKES HALL MEDICAL CENTRE,36641141,9250.21,S6 4GQ
Department of Health,NHS Sheffield CCG,31/05/2021,C&M-PMS Contract Value,PRC DELEGATED CO-COMMISSIONING,EAST BANK MEDICAL CENTRE,36641143,52191.84,S2 2AG
Department of Health,NHS Sheffield CCG,31/05/2021,C&M-PMS Prem Notional Rent,PRC DELEGATED CO-COMMISSIONING,EAST BANK MEDICAL CENTRE,36641143,10583.33,S2 2AG
Department of Health,NHS Sheffield CCG,31/05/2021,C&M-PMS Prem Rates,PRC DELEGATED CO-COMMISSIONING,EAST BANK MEDICAL CENTRE,36641143,4130.06,S2 2AG
Department of Health,NHS Sheffield CCG,31/05/2021,C&M-PMS QOF Aspiration,PRC DELEGATED CO-COMMISSIONING,EAST BANK MEDICAL CENTRE,36641143,5742.54,S2 2AG
Department of Health,NHS Sheffield CCG,31/05/2021,C&M-PMS Contract Value,PRC DELEGATED CO-COMMISSIONING,FIRTH PARK SURGERY,36641145,80907.98,S5 6HH
Department of Health,NHS Sheffield CCG,31/05/2021,C&M-PMS PCO Locum Sickness,PRC DELEGATED CO-COMMISSIONING,FIRTH PARK SURGERY,36641145,8723.52,S5 6HH
Department of Health,NHS Sheffield CCG,31/05/2021,C&M-PMS Prem Notional Rent,PRC DELEGATED CO-COMMISSIONING,FIRTH PARK SURGERY,36641145,4500,S5 6HH
Department of Health,NHS Sheffield CCG,31/05/2021,C&M-PMS Prem Rates,PRC DELEGATED CO-COMMISSIONING,FIRTH PARK SURGERY,36641145,1511.75,S5 6HH
Department of Health,NHS Sheffield CCG,31/05/2021,C&M-PMS QOF Aspiration,PRC DELEGATED CO-COMMISSIONING,FIRTH PARK SURGERY,36641145,8143.45,S5 6HH
Department of Health,NHS Sheffield CCG,31/05/2021,C&M-PMS Contract Value,PRC DELEGATED CO-COMMISSIONING,FALKLAND HOUSE,36641147,27777.19,S11 7PL
Department of Health,NHS Sheffield CCG,31/05/2021,C&M-PMS Prem Notional Rent,PRC DELEGATED CO-COMMISSIONING,FALKLAND HOUSE,36641147,1866.67,S11 7PL
Department of Health,NHS Sheffield CCG,31/05/2021,C&M-PMS Prem Rates,PRC DELEGATED CO-COMMISSIONING,FALKLAND HOUSE,36641147,1571.25,S11 7PL
Department of Health,NHS Sheffield CCG,31/05/2021,C&M-PMS QOF Aspiration,PRC DELEGATED CO-COMMISSIONING,FALKLAND HOUSE,36641147,3362.7,S11 7PL
Department of Health,NHS Sheffield CCG,31/05/2021,C&M-PMS Contract Value,PRC DELEGATED CO-COMMISSIONING,GLEADLESS MEDICAL CENTRE,36641149,71125.01,S14 1PQ
Department of Health,NHS Sheffield CCG,31/05/2021,C&M-PMS Funding Differential Review,PRC DELEGATED CO-COMMISSIONING,GLEADLESS MEDICAL CENTRE,36641149,1547.97,S14 1PQ
Department of Health,NHS Sheffield CCG,31/05/2021,C&M-PMS PCO Other,PRC DELEGATED CO-COMMISSIONING,GLEADLESS MEDICAL CENTRE,36641149,1112.8,S14 1PQ
Department of Health,NHS Sheffield CCG,31/05/2021,C&M-PMS Prem Notional Rent,PRC DELEGATED CO-COMMISSIONING,GLEADLESS MEDICAL CENTRE,36641149,6885.42,S14 1PQ
Department of Health,NHS Sheffield CCG,31/05/2021,C&M-PMS Prem Rates,PRC DELEGATED CO-COMMISSIONING,GLEADLESS MEDICAL CENTRE,36641149,2420.75,S14 1PQ
Department of Health,NHS Sheffield CCG,31/05/2021,C&M-PMS QOF Aspiration,PRC DELEGATED CO-COMMISSIONING,GLEADLESS MEDICAL CENTRE,36641149,8062.34,S14 1PQ
Department of Health,NHS Sheffield CCG,31/05/2021,C&M-PMS Contract Value,PRC DELEGATED CO-COMMISSIONING,HACKENTHORPE MEDICAL CENTRE,36641151,51366.12,S12 4LA
Department of Health,NHS Sheffield CCG,31/05/2021,C&M-PMS PCO Locum Adop/Pat/Mat,PRC DELEGATED CO-COMMISSIONING,HACKENTHORPE MEDICAL CENTRE,36641151,12127.56,S12 4LA
Department of Health,NHS Sheffield CCG,31/05/2021,C&M-PMS PCO Other,PRC DELEGATED CO-COMMISSIONING,HACKENTHORPE MEDICAL CENTRE,36641151,869.6,S12 4LA
Department of Health,NHS Sheffield CCG,31/05/2021,C&M-PMS Prem Notional Rent,PRC DELEGATED CO-COMMISSIONING,HACKENTHORPE MEDICAL CENTRE,36641151,5116.67,S12 4LA
Department of Health,NHS Sheffield CCG,31/05/2021,C&M-PMS Prem Rates,PRC DELEGATED CO-COMMISSIONING,HACKENTHORPE MEDICAL CENTRE,36641151,1719.75,S12 4LA
Department of Health,NHS Sheffield CCG,31/05/2021,C&M-PMS Prem Water Rates,PRC DELEGATED CO-COMMISSIONING,HACKENTHORPE MEDICAL CENTRE,36641151,211.52,S12 4LA
Department of Health,NHS Sheffield CCG,31/05/2021,C&M-PMS QOF Aspiration,PRC DELEGATED CO-COMMISSIONING,HACKENTHORPE MEDICAL CENTRE,36641151,7164.43,S12 4LA
Department of Health,NHS Sheffield CCG,31/05/2021,C&M-PMS Contract Value,PRC DELEGATED CO-COMMISSIONING,HEALTH CARE SURGERY,36641153,65408.63,S5 8GS
Department of Health,NHS Sheffield CCG,31/05/2021,C&M-PMS Funding Differential Review,PRC DELEGATED CO-COMMISSIONING,HEALTH CARE SURGERY,36641153,506.77,S5 8GS
Department of Health,NHS Sheffield CCG,31/05/2021,C&M-PMS Prem Notional Rent,PRC DELEGATED CO-COMMISSIONING,HEALTH CARE SURGERY,36641153,5558.33,S5 8GS
Department of Health,NHS Sheffield CCG,31/05/2021,C&M-PMS QOF Aspiration,PRC DELEGATED CO-COMMISSIONING,HEALTH CARE SURGERY,36641153,6643.07,S5 8GS
Department of Health,NHS Sheffield CCG,31/05/2021,C&M- PCN DES Nursing Associate,PRC DELEGATED CO-COMMISSIONING,JAUNTY SPRINGS HEALTH CENTRE,36641155,2427.85,S12 3DZ
Department of Health,NHS Sheffield CCG,31/05/2021,C&M-PCN DES OCCUPATIONAL THERAPISTS,PRC DELEGATED CO-COMMISSIONING,JAUNTY SPRINGS HEALTH CENTRE,36641155,2521.63,S12 3DZ
Department of Health,NHS Sheffield CCG,31/05/2021,C&M-PCN DES PHARMACY TECHNICIANS,PRC DELEGATED CO-COMMISSIONING,JAUNTY SPRINGS HEALTH CENTRE,36641155,3009.5,S12 3DZ
Department of Health,NHS Sheffield CCG,31/05/2021,C&M-PMS Contract Value,PRC DELEGATED CO-COMMISSIONING,JAUNTY SPRINGS HEALTH CENTRE,36641155,32749.5,S12 3DZ
Department of Health,NHS Sheffield CCG,31/05/2021,C&M-PMS DES Extended Hours Access,PRC DELEGATED CO-COMMISSIONING,JAUNTY SPRINGS HEALTH CENTRE,36641155,4196.88,S12 3DZ
Department of Health,NHS Sheffield CCG,31/05/2021,C&M-PMS PCN DES Clin Pharmacist,PRC DELEGATED CO-COMMISSIONING,JAUNTY SPRINGS HEALTH CENTRE,36641155,7814.98,S12 3DZ
Department of Health,NHS Sheffield CCG,31/05/2021,C&M-PMS PCN DES Clinical Director,PRC DELEGATED CO-COMMISSIONING,JAUNTY SPRINGS HEALTH CENTRE,36641155,2145.07,S12 3DZ
Department of Health,NHS Sheffield CCG,31/05/2021,C&M-PMS PCN DES PCN support,LOCAL ENHANCED SERVICES,JAUNTY SPRINGS HEALTH CENTRE,36641155,4371.75,S12 3DZ
Department of Health,NHS Sheffield CCG,31/05/2021,C&M-PMS PCN DES Physiotherapist,PRC DELEGATED CO-COMMISSIONING,JAUNTY SPRINGS HEALTH CENTRE,36641155,4670.29,S12 3DZ
Department of Health,NHS Sheffield CCG,31/05/2021,C&M-PMS PCN DES Soc Prescribing,PRC DELEGATED CO-COMMISSIONING,JAUNTY SPRINGS HEALTH CENTRE,36641155,4223.92,S12 3DZ
Department of Health,NHS Sheffield CCG,31/05/2021,C&M-PMS Prem Notional Rent,PRC DELEGATED CO-COMMISSIONING,JAUNTY SPRINGS HEALTH CENTRE,36641155,3208.33,S12 3DZ
Department of Health,NHS Sheffield CCG,31/05/2021,C&M-PMS Prem Rates,PRC DELEGATED CO-COMMISSIONING,JAUNTY SPRINGS HEALTH CENTRE,36641155,848,S12 3DZ
Department of Health,NHS Sheffield CCG,31/05/2021,C&M-PMS QOF Aspiration,PRC DELEGATED CO-COMMISSIONING,JAUNTY SPRINGS HEALTH CENTRE,36641155,4210.6,S12 3DZ
Department of Health,NHS Sheffield CCG,31/05/2021,C&M-PMS Contract Value,PRC DELEGATED CO-COMMISSIONING,MEADOWHEAD GROUP PRACTICE,36641157,146609.82,S8 7RL
Department of Health,NHS Sheffield CCG,31/05/2021,C&M-PMS Funding Differential Review,PRC DELEGATED CO-COMMISSIONING,MEADOWHEAD GROUP PRACTICE,36641157,1641.85,S8 7RL
Department of Health,NHS Sheffield CCG,31/05/2021,C&M-PMS Prem Actual Rent,PRC DELEGATED CO-COMMISSIONING,MEADOWHEAD GROUP PRACTICE,36641157,3358.33,S8 7RL
Department of Health,NHS Sheffield CCG,31/05/2021,C&M-PMS Prem Cost Rent,PRC DELEGATED CO-COMMISSIONING,MEADOWHEAD GROUP PRACTICE,36641157,3647.42,S8 7RL
Department of Health,NHS Sheffield CCG,31/05/2021,C&M-PMS Prem Healthcentre Rent,PRC DELEGATED CO-COMMISSIONING,MEADOWHEAD GROUP PRACTICE,36641157,41665.03,S8 7RL
Department of Health,NHS Sheffield CCG,31/05/2021,C&M-PMS Prem Notional Rent,PRC DELEGATED CO-COMMISSIONING,MEADOWHEAD GROUP PRACTICE,36641157,5546.67,S8 7RL
Department of Health,NHS Sheffield CCG,31/05/2021,C&M-PMS Prem Rates,PRC DELEGATED CO-COMMISSIONING,MEADOWHEAD GROUP PRACTICE,36641157,1600,S8 7RL
Department of Health,NHS Sheffield CCG,31/05/2021,C&M-PMS QOF Aspiration,PRC DELEGATED CO-COMMISSIONING,MEADOWHEAD GROUP PRACTICE,36641157,18549.4,S8 7RL
Department of Health,NHS Sheffield CCG,31/05/2021,C&M-PMS Contract Value,PRC DELEGATED CO-COMMISSIONING,MANCHESTER ROAD SURGERY SHEFFIELD,36641159,35267.22,S10 5PN
Department of Health,NHS Sheffield CCG,31/05/2021,C&M-PMS PCO Other,PRC DELEGATED CO-COMMISSIONING,MANCHESTER ROAD SURGERY SHEFFIELD,36641159,3291,S10 5PN
Department of Health,NHS Sheffield CCG,31/05/2021,C&M-PMS Prem Cost Rent,PRC DELEGATED CO-COMMISSIONING,MANCHESTER ROAD SURGERY SHEFFIELD,36641159,3077.32,S10 5PN
Department of Health,NHS Sheffield CCG,31/05/2021,C&M-PMS Prem Notional Rent,PRC DELEGATED CO-COMMISSIONING,MANCHESTER ROAD SURGERY SHEFFIELD,36641159,442.92,S10 5PN
Department of Health,NHS Sheffield CCG,31/05/2021,C&M-PMS Prem Rates,PRC DELEGATED CO-COMMISSIONING,MANCHESTER ROAD SURGERY SHEFFIELD,36641159,986,S10 5PN
Department of Health,NHS Sheffield CCG,31/05/2021,C&M-PMS QOF Aspiration,PRC DELEGATED CO-COMMISSIONING,MANCHESTER ROAD SURGERY SHEFFIELD,36641159,4335.38,S10 5PN
Department of Health,NHS Sheffield CCG,31/05/2021,C&M-PMS Contract Value,PRC DELEGATED CO-COMMISSIONING,MOSBOROUGH HEALTH CENTRE,36641161,53688.83,S20 5BQ
Department of Health,NHS Sheffield CCG,31/05/2021,C&M-PMS Prem Notional Rent,PRC DELEGATED CO-COMMISSIONING,MOSBOROUGH HEALTH CENTRE,36641161,4541.67,S20 5BQ
Department of Health,NHS Sheffield CCG,31/05/2021,C&M-PMS Prem Rates,PRC DELEGATED CO-COMMISSIONING,MOSBOROUGH HEALTH CENTRE,36641161,1422.75,S20 5BQ
Department of Health,NHS Sheffield CCG,31/05/2021,C&M-PMS Prem Water Rates,PRC DELEGATED CO-COMMISSIONING,MOSBOROUGH HEALTH CENTRE,36641161,58.23,S20 5BQ
Department of Health,NHS Sheffield CCG,31/05/2021,C&M-PMS QOF Aspiration,PRC DELEGATED CO-COMMISSIONING,MOSBOROUGH HEALTH CENTRE,36641161,6332.35,S20 5BQ
Department of Health,NHS Sheffield CCG,31/05/2021,C&M-PMS Contract Value,PRC DELEGATED CO-COMMISSIONING,NETHERGREEN SURGERY,36641162,-689.36,S11 7EJ
Department of Health,NHS Sheffield CCG,31/05/2021,C&M-PMS GP Statutory Levy,PRC DELEGATED CO-COMMISSIONING,NETHERGREEN SURGERY,36641162,-326.06,S11 7EJ
Department of Health,NHS Sheffield CCG,31/05/2021,C&M-PMS Out of Hours Opt Outs,PRC DELEGATED CO-COMMISSIONING,NETHERGREEN SURGERY,36641162,-3164.16,S11 7EJ
Department of Health,NHS Sheffield CCG,31/05/2021,C&M-PMS Contract Value,PRC DELEGATED CO-COMMISSIONING,OWLTHORPE MEDICAL CENTRE,36641163,-354.38,S20 6PD
Department of Health,NHS Sheffield CCG,31/05/2021,C&M-PMS GP Statutory Levy,PRC DELEGATED CO-COMMISSIONING,OWLTHORPE MEDICAL CENTRE,36641163,-151.45,S20 6PD
Department of Health,NHS Sheffield CCG,31/05/2021,C&M-PMS Out of Hours Opt Outs,PRC DELEGATED CO-COMMISSIONING,OWLTHORPE MEDICAL CENTRE,36641163,-1626.6,S20 6PD
Department of Health,NHS Sheffield CCG,31/05/2021,C&M-PMS Contract Value,PRC DELEGATED CO-COMMISSIONING,OWLTHORPE MEDICAL CENTRE,36641164,34518.79,S20 6PD
Department of Health,NHS Sheffield CCG,31/05/2021,C&M-PMS Prem Actual Rent,PRC DELEGATED CO-COMMISSIONING,OWLTHORPE MEDICAL CENTRE,36641164,7539.58,S20 6PD
Department of Health,NHS Sheffield CCG,31/05/2021,C&M-PMS QOF Aspiration,PRC DELEGATED CO-COMMISSIONING,OWLTHORPE MEDICAL CENTRE,36641164,4204.31,S20 6PD
Department of Health,NHS Sheffield CCG,31/05/2021,C&M-PMS Contract Value,PRC DELEGATED CO-COMMISSIONING,PAGE HALL MEDICAL CENTRE,36641166,60848.74,S4 8GB
Department of Health,NHS Sheffield CCG,31/05/2021,C&M-PMS Funding Differential Review,PRC DELEGATED CO-COMMISSIONING,PAGE HALL MEDICAL CENTRE,36641166,1161.37,S4 8GB
Department of Health,NHS Sheffield CCG,31/05/2021,C&M-PMS Prem Notional Rent,PRC DELEGATED CO-COMMISSIONING,PAGE HALL MEDICAL CENTRE,36641166,4833.33,S4 8GB
Department of Health,NHS Sheffield CCG,31/05/2021,C&M-PMS Prem Rates,PRC DELEGATED CO-COMMISSIONING,PAGE HALL MEDICAL CENTRE,36641166,1699,S4 8GB
Department of Health,NHS Sheffield CCG,31/05/2021,C&M-PMS QOF Aspiration,PRC DELEGATED CO-COMMISSIONING,PAGE HALL MEDICAL CENTRE,36641166,5333.21,S4 8GB
Department of Health,NHS Sheffield CCG,31/05/2021,C&M-PMS Contract Value,PRC DELEGATED CO-COMMISSIONING,PORTER BROOK MEDICAL CENTRE,36641167,-1711.66,S11 8HN
Department of Health,NHS Sheffield CCG,31/05/2021,C&M-PMS GP Statutory Levy,PRC DELEGATED CO-COMMISSIONING,PORTER BROOK MEDICAL CENTRE,36641167,-995.86,S11 8HN
Department of Health,NHS Sheffield CCG,31/05/2021,C&M-PMS Out of Hours Opt Outs,PRC DELEGATED CO-COMMISSIONING,PORTER BROOK MEDICAL CENTRE,36641167,-7856.53,S11 8HN
Department of Health,NHS Sheffield CCG,31/05/2021,C&M-PMS Contract Value,PRC DELEGATED CO-COMMISSIONING,PORTER BROOK MEDICAL CENTRE,36641168,167407.36,S11 8HN
Department of Health,NHS Sheffield CCG,31/05/2021,C&M-PMS Funding Differential Review,PRC DELEGATED CO-COMMISSIONING,PORTER BROOK MEDICAL CENTRE,36641168,3636.27,S11 8HN
Department of Health,NHS Sheffield CCG,31/05/2021,C&M-PMS Prem Notional Rent,PRC DELEGATED CO-COMMISSIONING,PORTER BROOK MEDICAL CENTRE,36641168,11333.34,S11 8HN
Department of Health,NHS Sheffield CCG,31/05/2021,C&M-PMS Prem Rates,PRC DELEGATED CO-COMMISSIONING,PORTER BROOK MEDICAL CENTRE,36641168,3629.79,S11 8HN
Department of Health,NHS Sheffield CCG,31/05/2021,C&M-PMS QOF Aspiration,PRC DELEGATED CO-COMMISSIONING,PORTER BROOK MEDICAL CENTRE,36641168,11138.7,S11 8HN
Department of Health,NHS Sheffield CCG,31/05/2021,C&M-PMS Contract Value,PRC DELEGATED CO-COMMISSIONING,RICHMOND MEDICAL CENTRE,36641170,72709.83,S13 8NA
Department of Health,NHS Sheffield CCG,31/05/2021,C&M-PMS PCO Locum Adop/Pat/Mat,PRC DELEGATED CO-COMMISSIONING,RICHMOND MEDICAL CENTRE,36641170,19277.05,S13 8NA
Department of Health,NHS Sheffield CCG,31/05/2021,C&M-PMS PCO Other,PRC DELEGATED CO-COMMISSIONING,RICHMOND MEDICAL CENTRE,36641170,1152.8,S13 8NA
Department of Health,NHS Sheffield CCG,31/05/2021,C&M-PMS Prem Notional Rent,PRC DELEGATED CO-COMMISSIONING,RICHMOND MEDICAL CENTRE,36641170,4731,S13 8NA
Department of Health,NHS Sheffield CCG,31/05/2021,C&M-PMS Prem Rates,PRC DELEGATED CO-COMMISSIONING,RICHMOND MEDICAL CENTRE,36641170,2194,S13 8NA
Department of Health,NHS Sheffield CCG,31/05/2021,C&M-PMS QOF Aspiration,PRC DELEGATED CO-COMMISSIONING,RICHMOND MEDICAL CENTRE,36641170,8858.87,S13 8NA
Department of Health,NHS Sheffield CCG,31/05/2021,C&M-PMS Contract Value,PRC DELEGATED CO-COMMISSIONING,RUSTLINGS ROAD MEDICAL CENTRE,36641174,30145.44,S11 7AB
Department of Health,NHS Sheffield CCG,31/05/2021,C&M-PMS Funding Differential Review,PRC DELEGATED CO-COMMISSIONING,RUSTLINGS ROAD MEDICAL CENTRE,36641174,565.04,S11 7AB
Department of Health,NHS Sheffield CCG,31/05/2021,C&M-PMS PCO Other,PRC DELEGATED CO-COMMISSIONING,RUSTLINGS ROAD MEDICAL CENTRE,36641174,635.6,S11 7AB
Department of Health,NHS Sheffield CCG,31/05/2021,C&M-PMS Prem Notional Rent,PRC DELEGATED CO-COMMISSIONING,RUSTLINGS ROAD MEDICAL CENTRE,36641174,1312.5,S11 7AB
Department of Health,NHS Sheffield CCG,31/05/2021,C&M-PMS QOF Aspiration,PRC DELEGATED CO-COMMISSIONING,RUSTLINGS ROAD MEDICAL CENTRE,36641174,3139.32,S11 7AB
Department of Health,NHS Sheffield CCG,31/05/2021,C&M-PMS Contract Value,PRC DELEGATED CO-COMMISSIONING,SLOAN MEDICAL CENTRE,36641176,102117.85,S8 0YH
Department of Health,NHS Sheffield CCG,31/05/2021,C&M-PMS PCO Locum Adop/Pat/Mat,PRC DELEGATED CO-COMMISSIONING,SLOAN MEDICAL CENTRE,36641176,13624.03,S8 0YH
Department of Health,NHS Sheffield CCG,31/05/2021,C&M-PMS PCO Locum Sickness,PRC DELEGATED CO-COMMISSIONING,SLOAN MEDICAL CENTRE,36641176,8521.34,S8 0YH
Department of Health,NHS Sheffield CCG,31/05/2021,C&M-PMS PCO Other,PRC DELEGATED CO-COMMISSIONING,SLOAN MEDICAL CENTRE,36641176,1639.6,S8 0YH
Department of Health,NHS Sheffield CCG,31/05/2021,C&M-PMS Prem Notional Rent,PRC DELEGATED CO-COMMISSIONING,SLOAN MEDICAL CENTRE,36641176,747.5,S8 0YH
Department of Health,NHS Sheffield CCG,31/05/2021,C&M-PMS QOF Aspiration,PRC DELEGATED CO-COMMISSIONING,SLOAN MEDICAL CENTRE,36641176,11094.95,S8 0YH
Department of Health,NHS Sheffield CCG,31/05/2021,C&M-PMS Contract Value,PRC DELEGATED CO-COMMISSIONING,SOTHALL MEDICAL CENTRE,36641178,75689.4,S20 1HQ
Department of Health,NHS Sheffield CCG,31/05/2021,C&M-PMS PCO Other,PRC DELEGATED CO-COMMISSIONING,SOTHALL MEDICAL CENTRE,36641178,1252.2,S20 1HQ
Department of Health,NHS Sheffield CCG,31/05/2021,C&M-PMS Prem Notional Rent,PRC DELEGATED CO-COMMISSIONING,SOTHALL MEDICAL CENTRE,36641178,5116.67,S20 1HQ
Department of Health,NHS Sheffield CCG,31/05/2021,C&M-PMS Prem Rates,PRC DELEGATED CO-COMMISSIONING,SOTHALL MEDICAL CENTRE,36641178,617,S20 1HQ
Department of Health,NHS Sheffield CCG,31/05/2021,C&M-PMS QOF Aspiration,PRC DELEGATED CO-COMMISSIONING,SOTHALL MEDICAL CENTRE,36641178,9431.37,S20 1HQ
Department of Health,NHS Sheffield CCG,31/05/2021,C&M-PMS Contract Value,PRC DELEGATED CO-COMMISSIONING,SOUTHEY GREEN MEDICAL CENTRE,36641180,26049.77,S5 7QB
Department of Health,NHS Sheffield CCG,31/05/2021,C&M-PMS Funding Differential Review,PRC DELEGATED CO-COMMISSIONING,SOUTHEY GREEN MEDICAL CENTRE,36641180,612.28,S5 7QB
Department of Health,NHS Sheffield CCG,31/05/2021,C&M-PMS Prem Notional Rent,PRC DELEGATED CO-COMMISSIONING,SOUTHEY GREEN MEDICAL CENTRE,36641180,3362.5,S5 7QB
Department of Health,NHS Sheffield CCG,31/05/2021,C&M-PMS QOF Aspiration,PRC DELEGATED CO-COMMISSIONING,SOUTHEY GREEN MEDICAL CENTRE,36641180,2952.99,S5 7QB
Department of Health,NHS Sheffield CCG,31/05/2021,C&M-PMS Contract Value,PRC DELEGATED CO-COMMISSIONING,UPWELL STREET SURGERY,36641185,37684.28,S4 8AN
Department of Health,NHS Sheffield CCG,31/05/2021,C&M-PMS Funding Differential Review,PRC DELEGATED CO-COMMISSIONING,UPWELL STREET SURGERY,36641185,911.19,S4 8AN
Department of Health,NHS Sheffield CCG,31/05/2021,C&M-PMS PCO Other,PRC DELEGATED CO-COMMISSIONING,UPWELL STREET SURGERY,36641185,630.8,S4 8AN
Department of Health,NHS Sheffield CCG,31/05/2021,C&M-PMS Prem Notional Rent,PRC DELEGATED CO-COMMISSIONING,UPWELL STREET SURGERY,36641185,8137.5,S4 8AN
Department of Health,NHS Sheffield CCG,31/05/2021,C&M-PMS Prem Rates,PRC DELEGATED CO-COMMISSIONING,UPWELL STREET SURGERY,36641185,998,S4 8AN
Department of Health,NHS Sheffield CCG,31/05/2021,C&M-PMS QOF Aspiration,PRC DELEGATED CO-COMMISSIONING,UPWELL STREET SURGERY,36641185,4095.21,S4 8AN
Department of Health,NHS Sheffield CCG,31/05/2021,C&M-PMS Contract Value,PRC DELEGATED CO-COMMISSIONING,VALLEY MEDICAL CENTRE,36641187,84271.12,S36 1BX
Department of Health,NHS Sheffield CCG,31/05/2021,C&M-PMS DES Extended Hours Access,PRC DELEGATED CO-COMMISSIONING,VALLEY MEDICAL CENTRE,36641187,2477.4,S36 1BX
Department of Health,NHS Sheffield CCG,31/05/2021,C&M-PMS PCN DES Clinical Director,PRC DELEGATED CO-COMMISSIONING,VALLEY MEDICAL CENTRE,36641187,1266.23,S36 1BX
Department of Health,NHS Sheffield CCG,31/05/2021,C&M-PMS PCN DES PCN support,LOCAL ENHANCED SERVICES,VALLEY MEDICAL CENTRE,36641187,2580.63,S36 1BX
Department of Health,NHS Sheffield CCG,31/05/2021,C&M-PMS PCO Locum Adop/Pat/Mat,PRC DELEGATED CO-COMMISSIONING,VALLEY MEDICAL CENTRE,36641187,7500,S36 1BX
Department of Health,NHS Sheffield CCG,31/05/2021,C&M-PMS Prem Rates,PRC DELEGATED CO-COMMISSIONING,VALLEY MEDICAL CENTRE,36641187,657,S36 1BX
Department of Health,NHS Sheffield CCG,31/05/2021,C&M-PMS Prem Water Rates,PRC DELEGATED CO-COMMISSIONING,VALLEY MEDICAL CENTRE,36641187,248.68,S36 1BX
Department of Health,NHS Sheffield CCG,31/05/2021,C&M-PMS QOF Aspiration,PRC DELEGATED CO-COMMISSIONING,VALLEY MEDICAL CENTRE,36641187,9759.92,S36 1BX
Department of Health,NHS Sheffield CCG,31/05/2021,C&M-APMS Prem Notional Rent,PRC DELEGATED CO-COMMISSIONING,WOODHOUSE HEALTH CENTRE,36641189,6338.58,S13 7LY
Department of Health,NHS Sheffield CCG,31/05/2021,C&M-PMS Contract Value,PRC DELEGATED CO-COMMISSIONING,WOODHOUSE HEALTH CENTRE,36641189,103951.25,S13 7LY
Department of Health,NHS Sheffield CCG,31/05/2021,C&M-PMS Funding Differential Review,PRC DELEGATED CO-COMMISSIONING,WOODHOUSE HEALTH CENTRE,36641189,2095.91,S13 7LY
Department of Health,NHS Sheffield CCG,31/05/2021,C&M-PMS PCO Other,PRC DELEGATED CO-COMMISSIONING,WOODHOUSE HEALTH CENTRE,36641189,1487.8,S13 7LY
Department of Health,NHS Sheffield CCG,31/05/2021,C&M-PMS Prem Rates,PRC DELEGATED CO-COMMISSIONING,WOODHOUSE HEALTH CENTRE,36641189,2923.75,S13 7LY
Department of Health,NHS Sheffield CCG,31/05/2021,C&M-PMS Prem Water Rates,PRC DELEGATED CO-COMMISSIONING,WOODHOUSE HEALTH CENTRE,36641189,427.79,S13 7LY
Department of Health,NHS Sheffield CCG,31/05/2021,C&M-PMS QOF Aspiration,PRC DELEGATED CO-COMMISSIONING,WOODHOUSE HEALTH CENTRE,36641189,15023.58,S13 7LY
Department of Health,NHS Sheffield CCG,31/05/2021,C&M-PMS Contract Value,PRC DELEGATED CO-COMMISSIONING,WINCOBANK MEDICAL CENTRE,36641191,65910.29,S9 1DJ
Department of Health,NHS Sheffield CCG,31/05/2021,C&M-PMS Prem Healthcentre Rent,PRC DELEGATED CO-COMMISSIONING,WINCOBANK MEDICAL CENTRE,36641191,46340.33,S9 1DJ
Department of Health,NHS Sheffield CCG,31/05/2021,C&M-PMS QOF Aspiration,PRC DELEGATED CO-COMMISSIONING,WINCOBANK MEDICAL CENTRE,36641191,6971.47,S9 1DJ
Department of Health,NHS Sheffield CCG,31/05/2021,C&M-PMS Contract Value,PRC DELEGATED CO-COMMISSIONING,FOXHILL MEDICAL CENTRE SHEFFIELD,36641193,53451.66,S6 1GA
Department of Health,NHS Sheffield CCG,31/05/2021,C&M-PMS Funding Differential Review,PRC DELEGATED CO-COMMISSIONING,FOXHILL MEDICAL CENTRE SHEFFIELD,36641193,1157.94,S6 1GA
Department of Health,NHS Sheffield CCG,31/05/2021,C&M-PMS PCO Locum Sickness,PRC DELEGATED CO-COMMISSIONING,FOXHILL MEDICAL CENTRE SHEFFIELD,36641193,6130.32,S6 1GA
Department of Health,NHS Sheffield CCG,31/05/2021,C&M-PMS Prem Healthcentre Rent,PRC DELEGATED CO-COMMISSIONING,FOXHILL MEDICAL CENTRE SHEFFIELD,36641193,47880.58,S6 1GA
Department of Health,NHS Sheffield CCG,31/05/2021,C&M-PMS QOF Aspiration,PRC DELEGATED CO-COMMISSIONING,FOXHILL MEDICAL CENTRE SHEFFIELD,36641193,6010.77,S6 1GA
Department of Health,NHS Sheffield CCG,31/05/2021,C&M-PMS Contract Value,PRC DELEGATED CO-COMMISSIONING,FORGE HEALTH GROUP,36641194,-1300.78,S3 9DL
Department of Health,NHS Sheffield CCG,31/05/2021,C&M-PMS GP Statutory Levy,PRC DELEGATED CO-COMMISSIONING,FORGE HEALTH GROUP,36641194,-520.49,S3 9DL
Department of Health,NHS Sheffield CCG,31/05/2021,C&M-PMS Out of Hours Opt Outs,PRC DELEGATED CO-COMMISSIONING,FORGE HEALTH GROUP,36641194,-5970.61,S3 9DL
Department of Health,NHS Sheffield CCG,31/05/2021,C&M-PMS Contract Value,PRC DELEGATED CO-COMMISSIONING,FORGE HEALTH GROUP,36641195,127005.63,S3 9DL
Department of Health,NHS Sheffield CCG,31/05/2021,C&M-PMS DES Extended Hours Access,PRC DELEGATED CO-COMMISSIONING,FORGE HEALTH GROUP,36641195,6820.92,S3 9DL
Department of Health,NHS Sheffield CCG,31/05/2021,C&M-PMS PCN DES Clinical Director,PRC DELEGATED CO-COMMISSIONING,FORGE HEALTH GROUP,36641195,3486.25,S3 9DL
Department of Health,NHS Sheffield CCG,31/05/2021,C&M-PMS PCN DES PCN support,LOCAL ENHANCED SERVICES,FORGE HEALTH GROUP,36641195,7105.13,S3 9DL
Department of Health,NHS Sheffield CCG,31/05/2021,C&M-PMS PCO Locum Adop/Pat/Mat,PRC DELEGATED CO-COMMISSIONING,FORGE HEALTH GROUP,36641195,9034.2,S3 9DL
Department of Health,NHS Sheffield CCG,31/05/2021,C&M-PMS Prem Healthcentre Rent,PRC DELEGATED CO-COMMISSIONING,FORGE HEALTH GROUP,36641195,34544.96,S3 9DL
Department of Health,NHS Sheffield CCG,31/05/2021,C&M-PMS Prem Notional Rent,PRC DELEGATED CO-COMMISSIONING,FORGE HEALTH GROUP,36641195,9891.67,S3 9DL
Department of Health,NHS Sheffield CCG,31/05/2021,C&M-PMS QOF Aspiration,PRC DELEGATED CO-COMMISSIONING,FORGE HEALTH GROUP,36641195,12932.51,S3 9DL
Department of Health,NHS Sheffield CCG,31/05/2021,C&M-APMS Contract Value,PRC DELEGATED CO-COMMISSIONING,CLOVER CITY PRACTICE,36641197,32689.58,S9 4QH
Department of Health,NHS Sheffield CCG,31/05/2021,C&M-PMS QOF Aspiration,PRC DELEGATED CO-COMMISSIONING,CLOVER CITY PRACTICE,36641197,2080.01,S9 4QH
Department of Health,NHS Sheffield CCG,31/05/2021,C&M-PMS Contract Value,PRC DELEGATED CO-COMMISSIONING,WOODSEATS MEDICAL CENTRE,36643790,84587.39,S8 0SH
Department of Health,NHS Sheffield CCG,31/05/2021,C&M-PMS PCO Other,PRC DELEGATED CO-COMMISSIONING,WOODSEATS MEDICAL CENTRE,36643790,1309.8,S8 0SH
Department of Health,NHS Sheffield CCG,31/05/2021,C&M-PMS Prem Notional Rent,PRC DELEGATED CO-COMMISSIONING,WOODSEATS MEDICAL CENTRE,36643790,11666.67,S8 0SH
Department of Health,NHS Sheffield CCG,31/05/2021,C&M-PMS Prem Rates,PRC DELEGATED CO-COMMISSIONING,WOODSEATS MEDICAL CENTRE,36643790,5224,S8 0SH
Department of Health,NHS Sheffield CCG,31/05/2021,C&M-PMS Prem Water Rates,PRC DELEGATED CO-COMMISSIONING,WOODSEATS MEDICAL CENTRE,36643790,389.76,S8 0SH
Department of Health,NHS Sheffield CCG,31/05/2021,C&M-PMS QOF Aspiration,PRC DELEGATED CO-COMMISSIONING,WOODSEATS MEDICAL CENTRE,36643790,10133.24,S8 0SH
Department of Health,NHS Sheffield CCG,31/05/2021,C&M-PMS Contract Value,PRC DELEGATED CO-COMMISSIONING,MANOR & PARK GROUP PRACTICE,36643792,73683.38,S2 5QQ
Department of Health,NHS Sheffield CCG,31/05/2021,C&M-PMS Prem Notional Rent,PRC DELEGATED CO-COMMISSIONING,MANOR & PARK GROUP PRACTICE,36643792,9112.5,S2 5QQ
Department of Health,NHS Sheffield CCG,31/05/2021,C&M-PMS QOF Aspiration,PRC DELEGATED CO-COMMISSIONING,MANOR & PARK GROUP PRACTICE,36643792,6818.15,S2 5QQ
Department of Health,NHS Sheffield CCG,31/05/2021,Cont Care-Funded Nursing Care Allow,FUNDED NURSING CARE,COUNTRY COURT CARE LTD,36648996,26853.6,S5 6UU
Department of Health,NHS Sheffield CCG,31/05/2021,Cont Care-Funded Nursing Care Allow,FUNDED NURSING CARE,PRIORY GROUP LTD,36649012,25888.8,DL2 1TS
Department of Health,NHS Sheffield CCG,31/05/2021,Cont Care-Funded Nursing Care Allow,FUNDED NURSING CARE,ROSEBERRY CARE CENTRES,36649025,39618.26,S5 6AB
Department of Health,NHS Sheffield CCG,31/05/2021,Cont Care-Funded Nursing Care Allow,FUNDED NURSING CARE,BONDCARE,36649032,28488.4,NW4 4EF
Department of Health,NHS Sheffield CCG,31/05/2021,Training Expenses,BEREAVEMENT SERVICE,SHAPIRO CONSULTING LTD,36651270,38220,BN8 4BP
Department of Health,NHS Sheffield CCG,31/05/2021,C&M-PMS Contract Value,PRC DELEGATED CO-COMMISSIONING,NETHERGREEN SURGERY,36667559,67357.63,S11 7EJ
Department of Health,NHS Sheffield CCG,31/05/2021,C&M-PMS Funding Differential Review,PRC DELEGATED CO-COMMISSIONING,NETHERGREEN SURGERY,36667559,1369.87,S11 7EJ
Department of Health,NHS Sheffield CCG,31/05/2021,C&M-PMS PCO Locum Sickness,PRC DELEGATED CO-COMMISSIONING,NETHERGREEN SURGERY,36667559,5431.66,S11 7EJ
Department of Health,NHS Sheffield CCG,31/05/2021,C&M-PMS Prem Cost Rent,PRC DELEGATED CO-COMMISSIONING,NETHERGREEN SURGERY,36667559,5057.33,S11 7EJ
Department of Health,NHS Sheffield CCG,31/05/2021,C&M-PMS QOF Aspiration,PRC DELEGATED CO-COMMISSIONING,NETHERGREEN SURGERY,36667559,7008.62,S11 7EJ
Department of Health,NHS Sheffield CCG,31/05/2021,C&M-PCN DES Trainee Nursing Associate,PRC DELEGATED CO-COMMISSIONING,UNIVERSITY HEALTH SERVICE,36667560,1836.94,S3 7QP
Department of Health,NHS Sheffield CCG,31/05/2021,C&M-PMS Contract Value,PRC DELEGATED CO-COMMISSIONING,UNIVERSITY HEALTH SERVICE,36667560,202981.57,S3 7QP
Department of Health,NHS Sheffield CCG,31/05/2021,C&M-PMS DES Extended Hours Access,PRC DELEGATED CO-COMMISSIONING,UNIVERSITY HEALTH SERVICE,36667560,4876.32,S3 7QP
Department of Health,NHS Sheffield CCG,31/05/2021,C&M-PMS PCN DES Clin Pharmacist,PRC DELEGATED CO-COMMISSIONING,UNIVERSITY HEALTH SERVICE,36667560,9347.32,S3 7QP
Department of Health,NHS Sheffield CCG,31/05/2021,C&M-PMS PCN DES Clinical Director,PRC DELEGATED CO-COMMISSIONING,UNIVERSITY HEALTH SERVICE,36667560,2492.34,S3 7QP
Department of Health,NHS Sheffield CCG,31/05/2021,C&M-PMS PCN DES PCN support,LOCAL ENHANCED SERVICES,UNIVERSITY HEALTH SERVICE,36667560,5079.5,S3 7QP
Department of Health,NHS Sheffield CCG,31/05/2021,C&M-PMS PCN DES Physiotherapist,PRC DELEGATED CO-COMMISSIONING,UNIVERSITY HEALTH SERVICE,36667560,3053.47,S3 7QP
Department of Health,NHS Sheffield CCG,31/05/2021,C&M-PMS PCN DES Soc Prescribing,PRC DELEGATED CO-COMMISSIONING,UNIVERSITY HEALTH SERVICE,36667560,2814.04,S3 7QP
Department of Health,NHS Sheffield CCG,31/05/2021,C&M-PMS Prem Notional Rent,PRC DELEGATED CO-COMMISSIONING,UNIVERSITY HEALTH SERVICE,36667560,15833.33,S3 7QP
Department of Health,NHS Sheffield CCG,31/05/2021,C&M-PMS QOF Aspiration,PRC DELEGATED CO-COMMISSIONING,UNIVERSITY HEALTH SERVICE,36667560,8048.38,S3 7QP
Department of Health,NHS Sheffield CCG,31/05/2021,Other Gen Supplies & Srv,CLINICAL LEADS,CANCER RESEARCH UK,36692259,74740,E20 1JQ
Department of Health,NHS Sheffield CCG,31/05/2021,Cont Care-Physical Disab (65+),CHC ADULT FULLY FUNDED,ABBEYCARE NURSING,36692285,56420.62,S35 9YY
Department of Health,NHS Sheffield CCG,31/05/2021,Clinical&Medical-Othe Public Sector,COMMUNITY SERVICES,SHEFFIELD CITY COUNCIL,36693002,150416.67,S1 1UJ
Department of Health,NHS Sheffield CCG,31/05/2021,Clinical&Medical-Othe Public Sector,MENTAL HEALTH SERVICES - COLLABORATIVE COMMISSIONING,SHEFFIELD CITY COUNCIL,36693002,82835.79,S1 1UJ
Department of Health,NHS Sheffield CCG,31/05/2021,Clinical&Medical-Othe Public Sector,REABLEMENT,SHEFFIELD CITY COUNCIL,36693002,21808.67,S1 1UJ
Department of Health,NHS Sheffield CCG,31/05/2021,Clinical&Medical-Othe Public Sector,SAFEGUARDING,SHEFFIELD CITY COUNCIL,36693002,16596.33,S1 1UJ
Department of Health,NHS Sheffield CCG,31/05/2021,Cont Care-Physical Disab (65+),CHC ADULT FULLY FUNDED,SHEFFIELD CITY COUNCIL,36693002,59435.47,S1 1UJ
Department of Health,NHS Sheffield CCG,31/05/2021,Soc Care-Joint H&C Teams/Working,INTERMEDIATE CARE,SHEFFIELD CITY COUNCIL,36693002,151447.58,S1 1UJ
Department of Health,NHS Sheffield CCG,31/05/2021,Soc Care-Other Soc Care,COMMISSIONING - NON ACUTE,SHEFFIELD CITY COUNCIL,36693002,1635250,S1 1UJ
Department of Health,NHS Sheffield CCG,31/05/2021,Soc Care-Support Prim Care,COMMUNITY SERVICES,SHEFFIELD CITY COUNCIL,36693002,70333.33,S1 1UJ
Department of Health,NHS Sheffield CCG,31/05/2021,C&M-GMS GP Training Costs,LOCAL ENHANCED SERVICES,BLUE STREAM ACADEMY,36708718,40000,DE56 0RN
Department of Health,NHS Sheffield CCG,31/05/2021,C&M-OES Childrens Schemes,LOCAL ENHANCED SERVICES,PRIMARY EYECARE SERVICES LTD,36709218,425,EC1R 0DG
Department of Health,NHS Sheffield CCG,31/05/2021,C&M-OES Glaucoma,LOCAL ENHANCED SERVICES,PRIMARY EYECARE SERVICES LTD,36709218,1345,EC1R 0DG
Department of Health,NHS Sheffield CCG,31/05/2021,C&M-OES Intra-ocular Ocular Hypertn,LOCAL ENHANCED SERVICES,PRIMARY EYECARE SERVICES LTD,36709218,340,EC1R 0DG
Department of Health,NHS Sheffield CCG,31/05/2021,C&M-OES PEARS,LOCAL ENHANCED SERVICES,PRIMARY EYECARE SERVICES LTD,36709218,30189.25,EC1R 0DG
Department of Health,NHS Sheffield CCG,31/05/2021,Clinical&Medical-Voluntary Sector,COLLABORATIVE COMMISSIONING,SOUTH YORKSHIRE HOUSING ASSOCIATION LTD,36709364,90000,S1 4EB
Department of Health,NHS Sheffield CCG,31/05/2021,C&M-GMS PCN DES Clin Pharmacist,PRC DELEGATED CO-COMMISSIONING,PRIMARY CARE SHEFFIELD LTD,36709388,20535.15,S9 4EU
Department of Health,NHS Sheffield CCG,31/05/2021,C&M-GMS PCN DES Physiotherapist,PRC DELEGATED CO-COMMISSIONING,PRIMARY CARE SHEFFIELD LTD,36709388,4668.08,S9 4EU
Department of Health,NHS Sheffield CCG,31/05/2021,C&M-GMS PCN DES Soc Prescribing,PRC DELEGATED CO-COMMISSIONING,PRIMARY CARE SHEFFIELD LTD,36709388,1993.43,S9 4EU
Department of Health,NHS Sheffield CCG,31/05/2021,C&M-PCN DES PHARMACY TECHNICIANS,PRC DELEGATED CO-COMMISSIONING,PRIMARY CARE SHEFFIELD LTD,36709388,2949.16,S9 4EU
Department of Health,NHS Sheffield CCG,31/05/2021,PREPYMT OVERSEAS NON EEA PATIENTS,BALANCE SHEET,SHEFFIELD TEACHING HOSPITALS NHS FOUNDATION TRUST,36709439,-52268.02,S5 7AU
Department of Health,NHS Sheffield CCG,31/05/2021,Hcare Srv Rec Fdtn Trust-Contract Baseline,ACUTE COMMISSIONING,BARNSLEY HOSPITAL NHS FOUNDATION TRUST,36714229,131671.79,S75 2EP
Department of Health,NHS Sheffield CCG,31/05/2021,Hcare Srv Rec Fdtn Trust-Contract Baseline,ACUTE COMMISSIONING,CHESTERFIELD ROYAL HOSPITAL NHS FOUNDATION TRUST,36714231,371022.89,S44 5BL
Department of Health,NHS Sheffield CCG,31/05/2021,Hcare Srv Rec Fdtn Trust-Contract Baseline,ACUTE COMMISSIONING,DONCASTER AND BASSETLAW HOSPITALS NHS FOUNDATION TRUST,36714233,80128.09,WF3 1WE
Department of Health,NHS Sheffield CCG,31/05/2021,Hcare Srv Rec NHS Trust-Contract Baseline,ACUTE COMMISSIONING,LEEDS TEACHING HOSPITALS NHS TRUST,36714236,48099.81,LS9 7TF
Department of Health,NHS Sheffield CCG,31/05/2021,Hcare Srv Rec NHS Trust-Contract Baseline,AMBULANCE SERVICES,YORKSHIRE AMBULANCE SERVICE NHS TRUST,36714237,2414190.52,WF2 0XQ
Department of Health,NHS Sheffield CCG,31/05/2021,Hcare Srv Rec Fdtn Trust-Contract Baseline,ACUTE COMMISSIONING,SHEFFIELD TEACHING HOSPITALS NHS FOUNDATION TRUST,36714238,187941.02,S5 7AU
Department of Health,NHS Sheffield CCG,31/05/2021,Hcare Srv Rec Fdtn Trust-Contract Baseline,ACUTE COMMISSIONING,SHEFFIELD TEACHING HOSPITALS NHS FOUNDATION TRUST,36714239,37776144.59,S5 7AU
Department of Health,NHS Sheffield CCG,31/05/2021,Hcare Srv Rec Fdtn Trust-Contract Baseline,ACUTE COMMISSIONING,ROTHERHAM NHS FOUNDATION TRUST,36714241,622083.23,S60 2UD
Department of Health,NHS Sheffield CCG,31/05/2021,Hcare Srv Rec NHS Trust-Contract Baseline,AMBULANCE SERVICES,YORKSHIRE AMBULANCE SERVICE NHS TRUST,36714243,46666.67,WF2 0XQ
Department of Health,NHS Sheffield CCG,31/05/2021,Hcare Srv Rec Fdtn Trust-Contract Baseline,ACUTE CHILDRENS SERVICES,SHEFFIELD CHILDRENS NHS FOUNDATION TRUST,36714244,264833.33,S10 2TH
Department of Health,NHS Sheffield CCG,31/05/2021,Hcare Srv Rec Fdtn Trust-Contract Baseline,ACUTE CHILDRENS SERVICES,SHEFFIELD CHILDRENS NHS FOUNDATION TRUST,36714245,2279500,S10 2TH
Department of Health,NHS Sheffield CCG,31/05/2021,Hcare Srv Rec Fdtn Trust-Contract Baseline,ACUTE CHILDRENS SERVICES,SHEFFIELD CHILDRENS NHS FOUNDATION TRUST,36714246,125625,S10 2TH
Department of Health,NHS Sheffield CCG,31/05/2021,Hcare Srv Rec Fdtn Trust-Contract Baseline,ACUTE CHILDRENS SERVICES,SHEFFIELD CHILDRENS NHS FOUNDATION TRUST,36714247,207885.1,S10 2TH
Department of Health,NHS Sheffield CCG,31/05/2021,Hcare Srv Rec Fdtn Trust-Contract Baseline,ACUTE CHILDRENS SERVICES,SHEFFIELD CHILDRENS NHS FOUNDATION TRUST,36714248,3668234.08,S10 2TH
Department of Health,NHS Sheffield CCG,31/05/2021,Hcare Srv Rec Fdtn Trust-Contract Baseline,MENTAL HEALTH CONTRACTS,SHEFFIELD HEALTH & SOCIAL CARE NHS FOUNDATION TRUST,36714249,8171496.52,S10 3TH
Department of Health,NHS Sheffield CCG,31/05/2021,Hcare Srv Rec Fdtn Trust-Contract Baseline,MENTAL HEALTH CONTRACTS,SHEFFIELD HEALTH & SOCIAL CARE NHS FOUNDATION TRUST,36714250,859506.99,S10 3TH
Department of Health,NHS Sheffield CCG,31/05/2021,Hcare Srv Rec Fdtn Trust-Contract Baseline,MENTAL HEALTH CONTRACTS,SHEFFIELD HEALTH & SOCIAL CARE NHS FOUNDATION TRUST,36714251,908500,S10 3TH
Department of Health,NHS Sheffield CCG,31/05/2021,Hcare Srv Rec Fdtn Trust-Contract Baseline,MENTAL HEALTH CONTRACTS,SHEFFIELD HEALTH & SOCIAL CARE NHS FOUNDATION TRUST,36714252,546666.67,S10 3TH
Department of Health,NHS Sheffield CCG,31/05/2021,Hcare Srv Rec Fdtn Trust-Contract Baseline,ACUTE COMMISSIONING,SHEFFIELD TEACHING HOSPITALS NHS FOUNDATION TRUST,36714253,7159786.65,S5 7AU
Department of Health,NHS Sheffield CCG,31/05/2021,Hcare Srv Rec Fdtn Trust-Contract Baseline,ACUTE COMMISSIONING,SHEFFIELD TEACHING HOSPITALS NHS FOUNDATION TRUST,36714256,3143964.5,S5 7AU
Department of Health,NHS Sheffield CCG,31/05/2021,Clinical&Medical-Serv Recd-F Trsts,BEREAVEMENT SERVICE,HUMBER TEACHING NHS FOUNDATION TRUST,36714258,50920.34,WF3 1WE
Department of Health,NHS Sheffield CCG,31/05/2021,Cont Care- Prior Year Payments,CHC ADULT FULLY FUNDED,EMERALD CARE SERVICES LTD,36724868,17874.44,CV3 4FJ
Department of Health,NHS Sheffield CCG,31/05/2021,Cont Care-Learning Disab(<65),CHC ADULT FULLY FUNDED,EMERALD CARE SERVICES LTD,36724868,14111.4,CV3 4FJ
Department of Health,NHS Sheffield CCG,31/05/2021,Cont Care-Learning Disab(<65),CHC ADULT FULLY FUNDED,LODGE HEALTH CARE LTD,36724872,-32165.01,S26 4WB
Department of Health,NHS Sheffield CCG,31/05/2021,Cont Care- Prior Year Payments,CHC ADULT FULLY FUNDED,SOUTH YORKSHIRE HOUSING ASSOCIATION LTD,36733426,237296.19,S1 4EB
Department of Health,NHS Sheffield CCG,31/05/2021,Cont Care-Physical Disab (65+),CHC ADULT FULLY FUNDED,SHEFFIELD CITY COUNCIL,36735428,960266.47,S1 1UJ
Department of Health,NHS Sheffield CCG,31/05/2021,Cont Care- Children,CHC CHILDREN,SHEFFIELD CITY COUNCIL,36735430,131958.93,S1 1UJ
Department of Health,NHS Sheffield CCG,31/05/2021,Cont Care- Prior Year Payments,CHC ADULT FULLY FUNDED,HORIZON CARE HOMES LTD,36735446,103448,S25 3QA
Department of Health,NHS Sheffield CCG,31/05/2021,Cont Care-Physical Disab (<65),CHC ADULT FULLY FUNDED,SOUTH YORKSHIRE HOUSING ASSOCIATION LTD,36735452,64388.92,S35 1RQ
Department of Health,NHS Sheffield CCG,31/05/2021,Cont Care-Physical Disab (<65),CHC ADULT FULLY FUNDED,FAIRWINDS HEALTH CARE LTD,36735455,40311.92,S61 1AJ
Department of Health,NHS Sheffield CCG,31/05/2021,Cont Care-Physical Disab (<65),CHC ADULT FULLY FUNDED,LONGLEY HEALTH CARE LTD,36735459,129179.91,S5 7JZ
Department of Health,NHS Sheffield CCG,31/05/2021,Cont Care-Physical Disab (<65),CHC ADULT FULLY FUNDED,PRIORY GROUP LTD,36735464,28142.61,DL2 1TS
Department of Health,NHS Sheffield CCG,31/05/2021,Cont Care-Physical Disab (<65),CHC ADULT FULLY FUNDED,SCARSDALE GRANGE NURSING HOME,36735466,62535.62,S8 9EQ
Department of Health,NHS Sheffield CCG,31/05/2021,Cont Care-Physical Disab (<65),CHC ADULT FULLY FUNDED,SEVEN HILLS NURSING HOME,36735467,48881.77,S11 9AA
Department of Health,NHS Sheffield CCG,31/05/2021,Cont Care-Physical Disab (<65),CHC ADULT FULLY FUNDED,WILLOWBECK HEALTH CARE LTD,36735471,193942.59,S4 8AR
Department of Health,NHS Sheffield CCG,31/05/2021,Cont Care-Physical Disab (<65),CHC ADULT FULLY FUNDED,ROSEBERRY CARE CENTRES,36735475,31457.55,S5 6AB
Department of Health,NHS Sheffield CCG,31/05/2021,Cont Care-Physical Disab (<65),CHC ADULT FULLY FUNDED,BONDCARE,36735483,35787.47,NW4 4EF
Department of Health,NHS Sheffield CCG,31/05/2021,Cont Care-Physical Disab (<65),CHC ADULT FULLY FUNDED,ROSEBERRY CARE CENTRES,36735484,31526.81,S4 7AJ
Department of Health,NHS Sheffield CCG,31/05/2021,Cont Care-Physical Disab (<65),CHC ADULT FULLY FUNDED,SUSASH GB LTD T/A EAGLE HOUSE,36735486,27907.46,S11 8NP
Department of Health,NHS Sheffield CCG,31/05/2021,Cont Care-Physical Disab (<65),CHC ADULT FULLY FUNDED,HORIZON CARE HOMES LTD,36735487,98249.69,S25 3QA
Department of Health,NHS Sheffield CCG,31/05/2021,Cont Care-Physical Disab (<65),CHC ADULT FULLY FUNDED,VALORUM CARE LTD,36735488,45755.99,LS19 7RW
Department of Health,NHS Sheffield CCG,31/05/2021,Cont Care-Physical Disab (<65),CHC ADULT FULLY FUNDED,INLET LTD,36735490,67755.01,S48NB
Department of Health,NHS Sheffield CCG,31/05/2021,C&M-GMS IT Comm Servs -GP Practices,PRIMARY CARE IT,REDCENTRIC SOLUTIONS LTD,36779278,32037.12,HG3 1UG
Department of Health,NHS Sheffield CCG,31/05/2021,Clinical&Medical-Independent Sector,ACUTE COMMISSIONING,CLAREMONT HOSPITAL,36793861,78839,S10 5UB
Department of Health,NHS Sheffield CCG,31/05/2021,Clinical&Medical-Independent Sector,ACUTE COMMISSIONING,BMI HEALTHCARE LTD,36793880,47095.63,SK3 0XN
Department of Health,NHS Sheffield CCG,31/05/2021,C&M-APMS DES Extended Hours Access,GP FORWARD VIEW,PRIMARY CARE SHEFFIELD LTD,36793989,309441.67,S12 3GH
Department of Health,NHS Sheffield CCG,31/05/2021,Voids and Subsidies,PRC DELEGATED CO-COMMISSIONING,COMMUNITY HEALTH PARTNERSHIPS LTD,36794001,39450.83,M1 5AN
Department of Health,NHS Sheffield CCG,31/05/2021,Voids and Subsidies,RECHARGES NHS PROPERTY SERVICES LTD,COMMUNITY HEALTH PARTNERSHIPS LTD,36794001,126922.74,M1 5AN
Department of Health,NHS Sheffield CCG,31/05/2021,Voids and Subsidies,PRC DELEGATED CO-COMMISSIONING,COMMUNITY HEALTH PARTNERSHIPS LTD,36794026,39450.83,M1 5AN
Department of Health,NHS Sheffield CCG,31/05/2021,Voids and Subsidies,RECHARGES NHS PROPERTY SERVICES LTD,COMMUNITY HEALTH PARTNERSHIPS LTD,36794026,126922.74,M1 5AN
Department of Health,NHS Sheffield CCG,31/05/2021,C&M-GMS LES Basket of Procedures,LOCAL ENHANCED SERVICES,PRIMARY CARE SHEFFIELD LTD,36794040,53558.33,S12 3GH
Department of Health,NHS Sheffield CCG,31/05/2021,Clinical&Medical-Independent Sector,ACUTE COMMISSIONING,ONEHEALTH GROUP,36794199,51488.67,S11 8UX
Department of Health,NHS Sheffield CCG,31/05/2021,Clinical&Medical-Voluntary Sector,HOSPICES,ST LUKES HOSPICE,36794205,-54447.79,S11 9NE
Department of Health,NHS Sheffield CCG,31/05/2021,Clinical&Medical-Independent Sector,ACUTE COMMISSIONING,SPAMEDICA LTD,36794223,102489.76,M15 4SQ
Department of Health,NHS Sheffield CCG,31/05/2021,C&M-GMS Global Sum,PRC DELEGATED CO-COMMISSIONING,BASLOW ROAD & SHOREHAM STREET SURGERIES,36829914,101568.79,S17 4DR
Department of Health,NHS Sheffield CCG,31/05/2021,C&M-GMS PCN DES Participation,PRC DELEGATED CO-COMMISSIONING,BASLOW ROAD & SHOREHAM STREET SURGERIES,36829914,1957.06,S17 4DR
Department of Health,NHS Sheffield CCG,31/05/2021,C&M-GMS Prem Notional Rent,PRC DELEGATED CO-COMMISSIONING,BASLOW ROAD & SHOREHAM STREET SURGERIES,36829914,8222.71,S17 4DR
Department of Health,NHS Sheffield CCG,31/05/2021,C&M-GMS QOF Aspiration,PRC DELEGATED CO-COMMISSIONING,BASLOW ROAD & SHOREHAM STREET SURGERIES,36829914,10432.69,S17 4DR
Department of Health,NHS Sheffield CCG,31/05/2021,C&M-GMS Cost of Drugs -Prescribing,LOCAL ENHANCED SERVICES,BUCHANAN ROAD SURGERY,36829917,193.03,S5 8AL
Department of Health,NHS Sheffield CCG,31/05/2021,C&M-GMS Global Sum,PRC DELEGATED CO-COMMISSIONING,BUCHANAN ROAD SURGERY,36829917,37859.26,S5 8AL
Department of Health,NHS Sheffield CCG,31/05/2021,C&M-GMS PCN DES Participation,PRC DELEGATED CO-COMMISSIONING,BUCHANAN ROAD SURGERY,36829917,727.12,S5 8AL
Department of Health,NHS Sheffield CCG,31/05/2021,C&M-GMS Prem Notional Rent,PRC DELEGATED CO-COMMISSIONING,BUCHANAN ROAD SURGERY,36829917,2595.83,S5 8AL
Department of Health,NHS Sheffield CCG,31/05/2021,C&M-GMS Prof Fees Prescribing,PRC DELEGATED CO-COMMISSIONING,BUCHANAN ROAD SURGERY,36829917,37.37,S5 8AL
Department of Health,NHS Sheffield CCG,31/05/2021,C&M-GMS QOF Aspiration,PRC DELEGATED CO-COMMISSIONING,BUCHANAN ROAD SURGERY,36829917,4720.03,S5 8AL
Department of Health,NHS Sheffield CCG,31/05/2021,C&M-GMS Cost of Drugs -Prescribing,LOCAL ENHANCED SERVICES,BROOMHILL SURGERY,36829921,2147.98,S10 5BU
Department of Health,NHS Sheffield CCG,31/05/2021,C&M-GMS DES Learn Dsblty Hlth Chk,PRC DELEGATED CO-COMMISSIONING,BROOMHILL SURGERY,36829921,140,S10 5BU
Department of Health,NHS Sheffield CCG,31/05/2021,C&M-GMS Global Sum,PRC DELEGATED CO-COMMISSIONING,BROOMHILL SURGERY,36829921,68591.08,S10 5BU
Department of Health,NHS Sheffield CCG,31/05/2021,C&M-GMS PCN DES Participation,PRC DELEGATED CO-COMMISSIONING,BROOMHILL SURGERY,36829921,1322.15,S10 5BU
Department of Health,NHS Sheffield CCG,31/05/2021,C&M-GMS Prem Cost Rent,PRC DELEGATED CO-COMMISSIONING,BROOMHILL SURGERY,36829921,3309.67,S10 5BU
Department of Health,NHS Sheffield CCG,31/05/2021,C&M-GMS Prem Notional Rent,PRC DELEGATED CO-COMMISSIONING,BROOMHILL SURGERY,36829921,2612.5,S10 5BU
Department of Health,NHS Sheffield CCG,31/05/2021,C&M-GMS Prof Fees Prescribing,PRC DELEGATED CO-COMMISSIONING,BROOMHILL SURGERY,36829921,64.06,S10 5BU
Department of Health,NHS Sheffield CCG,31/05/2021,C&M-GMS QOF Aspiration,PRC DELEGATED CO-COMMISSIONING,BROOMHILL SURGERY,36829921,7198.65,S10 5BU
Department of Health,NHS Sheffield CCG,31/05/2021,C&M-GMS Cost of Drugs -Prescribing,LOCAL ENHANCED SERVICES,CHARNOCK HEALTH PRIMARY CARE CENTRE,36829923,823.8,S12 3GH
Department of Health,NHS Sheffield CCG,31/05/2021,C&M-GMS DES Learn Dsblty Hlth Chk,PRC DELEGATED CO-COMMISSIONING,CHARNOCK HEALTH PRIMARY CARE CENTRE,36829923,1680,S12 3GH
Department of Health,NHS Sheffield CCG,31/05/2021,C&M-GMS Global Sum,PRC DELEGATED CO-COMMISSIONING,CHARNOCK HEALTH PRIMARY CARE CENTRE,36829923,46381.58,S12 3GH
Department of Health,NHS Sheffield CCG,31/05/2021,C&M-GMS PCN DES Participation,PRC DELEGATED CO-COMMISSIONING,CHARNOCK HEALTH PRIMARY CARE CENTRE,36829923,884.41,S12 3GH
Department of Health,NHS Sheffield CCG,31/05/2021,C&M-GMS PCO Locum Adop/Pat/Mat,PRC DELEGATED CO-COMMISSIONING,CHARNOCK HEALTH PRIMARY CARE CENTRE,36829923,15255.64,S12 3GH
Department of Health,NHS Sheffield CCG,31/05/2021,C&M-GMS Prem Notional Rent,PRC DELEGATED CO-COMMISSIONING,CHARNOCK HEALTH PRIMARY CARE CENTRE,36829923,340,S12 3GH
Department of Health,NHS Sheffield CCG,31/05/2021,C&M-GMS Prem Rates,PRC DELEGATED CO-COMMISSIONING,CHARNOCK HEALTH PRIMARY CARE CENTRE,36829923,1160,S12 3GH
Department of Health,NHS Sheffield CCG,31/05/2021,C&M-GMS Prof Fees Prescribing,PRC DELEGATED CO-COMMISSIONING,CHARNOCK HEALTH PRIMARY CARE CENTRE,36829923,34.7,S12 3GH
Department of Health,NHS Sheffield CCG,31/05/2021,C&M-GMS QOF Aspiration,PRC DELEGATED CO-COMMISSIONING,CHARNOCK HEALTH PRIMARY CARE CENTRE,36829923,5394.68,S12 3GH
Department of Health,NHS Sheffield CCG,31/05/2021,C&M-GMS GP Statutory Levy,PRC DELEGATED CO-COMMISSIONING,CARTERKNOWLE & DORE MEDICAL PRACTICE,36829926,-447.9,S7 2DW
Department of Health,NHS Sheffield CCG,31/05/2021,C&M-GMS Cost of Drugs -Prescribing,LOCAL ENHANCED SERVICES,CARTERKNOWLE & DORE MEDICAL PRACTICE,36829927,5091.68,S7 2DW
Department of Health,NHS Sheffield CCG,31/05/2021,C&M-GMS Global Sum,PRC DELEGATED CO-COMMISSIONING,CARTERKNOWLE & DORE MEDICAL PRACTICE,36829927,93873.25,S7 2DW
Department of Health,NHS Sheffield CCG,31/05/2021,C&M-GMS PCN DES Participation,PRC DELEGATED CO-COMMISSIONING,CARTERKNOWLE & DORE MEDICAL PRACTICE,36829927,1765.5,S7 2DW
Department of Health,NHS Sheffield CCG,31/05/2021,C&M-GMS Prem Notional Rent,PRC DELEGATED CO-COMMISSIONING,CARTERKNOWLE & DORE MEDICAL PRACTICE,36829927,7855,S7 2DW
Department of Health,NHS Sheffield CCG,31/05/2021,C&M-GMS Prof Fees Prescribing,PRC DELEGATED CO-COMMISSIONING,CARTERKNOWLE & DORE MEDICAL PRACTICE,36829927,282.92,S7 2DW
Department of Health,NHS Sheffield CCG,31/05/2021,C&M-GMS QOF Aspiration,PRC DELEGATED CO-COMMISSIONING,CARTERKNOWLE & DORE MEDICAL PRACTICE,36829927,11527.78,S7 2DW
Department of Health,NHS Sheffield CCG,31/05/2021,C&M-GMS Cost of Drugs -Prescribing,LOCAL ENHANCED SERVICES,CROOKES PRACTICE,36829932,79.62,S10 1GN
Department of Health,NHS Sheffield CCG,31/05/2021,C&M-GMS DES Learn Dsblty Hlth Chk,PRC DELEGATED CO-COMMISSIONING,CROOKES PRACTICE,36829932,5320,S10 1GN
Department of Health,NHS Sheffield CCG,31/05/2021,C&M-GMS Global Sum,PRC DELEGATED CO-COMMISSIONING,CROOKES PRACTICE,36829932,56502.73,S10 1GN
Department of Health,NHS Sheffield CCG,31/05/2021,C&M-GMS PCN DES Participation,PRC DELEGATED CO-COMMISSIONING,CROOKES PRACTICE,36829932,1077.54,S10 1GN
Department of Health,NHS Sheffield CCG,31/05/2021,C&M-GMS PCO Other,PRC DELEGATED CO-COMMISSIONING,CROOKES PRACTICE,36829932,1064.2,S10 1GN
Department of Health,NHS Sheffield CCG,31/05/2021,C&M-GMS Prem Notional Rent,PRC DELEGATED CO-COMMISSIONING,CROOKES PRACTICE,36829932,3874.67,S10 1GN
Department of Health,NHS Sheffield CCG,31/05/2021,C&M-GMS Prem Rates,PRC DELEGATED CO-COMMISSIONING,CROOKES PRACTICE,36829932,1534,S10 1GN
Department of Health,NHS Sheffield CCG,31/05/2021,C&M-GMS Prof Fees Prescribing,PRC DELEGATED CO-COMMISSIONING,CROOKES PRACTICE,36829932,32.03,S10 1GN
Department of Health,NHS Sheffield CCG,31/05/2021,C&M-GMS QOF Aspiration,PRC DELEGATED CO-COMMISSIONING,CROOKES PRACTICE,36829932,5421.93,S10 1GN
Department of Health,NHS Sheffield CCG,31/05/2021,C&M-GMS Global Sum,PRC DELEGATED CO-COMMISSIONING,DEVONSHIRE GREEN MEDICAL CENTRE,36829935,49558.82,S3 7SF
Department of Health,NHS Sheffield CCG,31/05/2021,C&M-GMS PCN DES Participation,PRC DELEGATED CO-COMMISSIONING,DEVONSHIRE GREEN MEDICAL CENTRE,36829935,936.47,S3 7SF
Department of Health,NHS Sheffield CCG,31/05/2021,C&M-GMS Prem Notional Rent,PRC DELEGATED CO-COMMISSIONING,DEVONSHIRE GREEN MEDICAL CENTRE,36829935,5987.5,S3 7SF
Department of Health,NHS Sheffield CCG,31/05/2021,C&M-GMS Prem Rates,PRC DELEGATED CO-COMMISSIONING,DEVONSHIRE GREEN MEDICAL CENTRE,36829935,778,S3 7SF
Department of Health,NHS Sheffield CCG,31/05/2021,C&M-GMS QOF Aspiration,PRC DELEGATED CO-COMMISSIONING,DEVONSHIRE GREEN MEDICAL CENTRE,36829935,5491.21,S3 7SF
Department of Health,NHS Sheffield CCG,31/05/2021,C&M-GMS GP Statutory Levy,PRC DELEGATED CO-COMMISSIONING,ECCLESFIELD GROUP PRACTICE,36829938,-301.63,S35 9XQ
Department of Health,NHS Sheffield CCG,31/05/2021,C&M-GMS Cost of Drugs -Prescribing,LOCAL ENHANCED SERVICES,ECCLESFIELD GROUP PRACTICE,36829939,2372.33,S35 9XQ
Department of Health,NHS Sheffield CCG,31/05/2021,C&M-GMS DES Extended Hours Access,PRC DELEGATED CO-COMMISSIONING,ECCLESFIELD GROUP PRACTICE,36829939,5114.88,S35 9XQ
Department of Health,NHS Sheffield CCG,31/05/2021,C&M-GMS DES Learn Dsblty Hlth Chk,PRC DELEGATED CO-COMMISSIONING,ECCLESFIELD GROUP PRACTICE,36829939,140,S35 9XQ
Department of Health,NHS Sheffield CCG,31/05/2021,C&M-GMS Global Sum,PRC DELEGATED CO-COMMISSIONING,ECCLESFIELD GROUP PRACTICE,36829939,75228.76,S35 9XQ
Department of Health,NHS Sheffield CCG,31/05/2021,C&M-GMS PCN DES Clinical Director,PRC DELEGATED CO-COMMISSIONING,ECCLESFIELD GROUP PRACTICE,36829939,2614.27,S35 9XQ
Department of Health,NHS Sheffield CCG,31/05/2021,C&M-GMS PCN DES PCN support,LOCAL ENHANCED SERVICES,ECCLESFIELD GROUP PRACTICE,36829939,5328,S35 9XQ
Department of Health,NHS Sheffield CCG,31/05/2021,C&M-GMS PCN DES Participation,PRC DELEGATED CO-COMMISSIONING,ECCLESFIELD GROUP PRACTICE,36829939,1441.13,S35 9XQ
Department of Health,NHS Sheffield CCG,31/05/2021,C&M-GMS PCN DES Physiotherapist,PRC DELEGATED CO-COMMISSIONING,ECCLESFIELD GROUP PRACTICE,36829939,4716.25,S35 9XQ
Department of Health,NHS Sheffield CCG,31/05/2021,C&M-GMS PCN DES Soc Prescribing,PRC DELEGATED CO-COMMISSIONING,ECCLESFIELD GROUP PRACTICE,36829939,5300.75,S35 9XQ
Department of Health,NHS Sheffield CCG,31/05/2021,C&M-GMS PCO Other,PRC DELEGATED CO-COMMISSIONING,ECCLESFIELD GROUP PRACTICE,36829939,1084,S35 9XQ
Department of Health,NHS Sheffield CCG,31/05/2021,C&M-GMS Prem Notional Rent,PRC DELEGATED CO-COMMISSIONING,ECCLESFIELD GROUP PRACTICE,36829939,8245.57,S35 9XQ
Department of Health,NHS Sheffield CCG,31/05/2021,C&M-GMS Prem Rates,PRC DELEGATED CO-COMMISSIONING,ECCLESFIELD GROUP PRACTICE,36829939,1063,S35 9XQ
Department of Health,NHS Sheffield CCG,31/05/2021,C&M-GMS Prem Water Rates,PRC DELEGATED CO-COMMISSIONING,ECCLESFIELD GROUP PRACTICE,36829939,397.5,S35 9XQ
Department of Health,NHS Sheffield CCG,31/05/2021,C&M-GMS Prof Fees Prescribing,PRC DELEGATED CO-COMMISSIONING,ECCLESFIELD GROUP PRACTICE,36829939,341.64,S35 9XQ
Department of Health,NHS Sheffield CCG,31/05/2021,C&M-GMS QOF Aspiration,PRC DELEGATED CO-COMMISSIONING,ECCLESFIELD GROUP PRACTICE,36829939,9922.9,S35 9XQ
Department of Health,NHS Sheffield CCG,31/05/2021,C&M-GMS Global Sum,PRC DELEGATED CO-COMMISSIONING,ELM LANE SURGERY,36829941,45587.88,S5 7TW
Department of Health,NHS Sheffield CCG,31/05/2021,C&M-GMS PCN DES Participation,PRC DELEGATED CO-COMMISSIONING,ELM LANE SURGERY,36829941,865.86,S5 7TW
Department of Health,NHS Sheffield CCG,31/05/2021,C&M-GMS Prem Notional Rent,PRC DELEGATED CO-COMMISSIONING,ELM LANE SURGERY,36829941,5343,S5 7TW
Department of Health,NHS Sheffield CCG,31/05/2021,C&M-GMS QOF Aspiration,PRC DELEGATED CO-COMMISSIONING,ELM LANE SURGERY,36829941,5528.96,S5 7TW
Department of Health,NHS Sheffield CCG,31/05/2021,C&M-GMS Cost of Drugs -Prescribing,LOCAL ENHANCED SERVICES,DUKE MEDICAL CENTRE,36829943,1515.33,S2 2TD
Department of Health,NHS Sheffield CCG,31/05/2021,C&M-GMS DES Learn Dsblty Hlth Chk,PRC DELEGATED CO-COMMISSIONING,DUKE MEDICAL CENTRE,36829943,3500,S2 2TD
Department of Health,NHS Sheffield CCG,31/05/2021,C&M-GMS Global Sum,PRC DELEGATED CO-COMMISSIONING,DUKE MEDICAL CENTRE,36829943,66063.07,S2 2TD
Department of Health,NHS Sheffield CCG,31/05/2021,C&M-GMS PCN DES Participation,PRC DELEGATED CO-COMMISSIONING,DUKE MEDICAL CENTRE,36829943,1180.97,S2 2TD
Department of Health,NHS Sheffield CCG,31/05/2021,C&M-GMS Prem Notional Rent,PRC DELEGATED CO-COMMISSIONING,DUKE MEDICAL CENTRE,36829943,5721.67,S2 2TD
Department of Health,NHS Sheffield CCG,31/05/2021,C&M-GMS Prof Fees Prescribing,PRC DELEGATED CO-COMMISSIONING,DUKE MEDICAL CENTRE,36829943,306.94,S2 2TD
Department of Health,NHS Sheffield CCG,31/05/2021,C&M-GMS QOF Aspiration,PRC DELEGATED CO-COMMISSIONING,DUKE MEDICAL CENTRE,36829943,6200.05,S2 2TD
Department of Health,NHS Sheffield CCG,31/05/2021,C&M-GMS Cost of Drugs -Prescribing,LOCAL ENHANCED SERVICES,FAR LANE MEDICAL CENTRE,36829949,56.14,S6 4FA
Department of Health,NHS Sheffield CCG,31/05/2021,C&M-GMS DES Learn Dsblty Hlth Chk,PRC DELEGATED CO-COMMISSIONING,FAR LANE MEDICAL CENTRE,36829949,2940,S6 4FA
Department of Health,NHS Sheffield CCG,31/05/2021,C&M-GMS Global Sum,PRC DELEGATED CO-COMMISSIONING,FAR LANE MEDICAL CENTRE,36829949,59147.86,S6 4FA
Department of Health,NHS Sheffield CCG,31/05/2021,C&M-GMS PCN DES Participation,PRC DELEGATED CO-COMMISSIONING,FAR LANE MEDICAL CENTRE,36829949,1139.22,S6 4FA
Department of Health,NHS Sheffield CCG,31/05/2021,C&M-GMS PCO Other,PRC DELEGATED CO-COMMISSIONING,FAR LANE MEDICAL CENTRE,36829949,916.6,S6 4FA
Department of Health,NHS Sheffield CCG,31/05/2021,C&M-GMS Prem Notional Rent,PRC DELEGATED CO-COMMISSIONING,FAR LANE MEDICAL CENTRE,36829949,3504.17,S6 4FA
Department of Health,NHS Sheffield CCG,31/05/2021,C&M-GMS Prof Fees Prescribing,PRC DELEGATED CO-COMMISSIONING,FAR LANE MEDICAL CENTRE,36829949,24.02,S6 4FA
Department of Health,NHS Sheffield CCG,31/05/2021,C&M-GMS QOF Aspiration,PRC DELEGATED CO-COMMISSIONING,FAR LANE MEDICAL CENTRE,36829949,6924.68,S6 4FA
Department of Health,NHS Sheffield CCG,31/05/2021,C&M-GMS Cost of Drugs -Prescribing,LOCAL ENHANCED SERVICES,HANDSWORTH MEDICAL PRACTICE SHEFFIELD,36829955,661.35,S13 9BZ
Department of Health,NHS Sheffield CCG,31/05/2021,C&M-GMS DES Learn Dsblty Hlth Chk,PRC DELEGATED CO-COMMISSIONING,HANDSWORTH MEDICAL PRACTICE SHEFFIELD,36829955,3780,S13 9BZ
Department of Health,NHS Sheffield CCG,31/05/2021,C&M-GMS Global Sum,PRC DELEGATED CO-COMMISSIONING,HANDSWORTH MEDICAL PRACTICE SHEFFIELD,36829955,84854.96,S13 9BZ
Department of Health,NHS Sheffield CCG,31/05/2021,C&M-GMS PCN DES Participation,PRC DELEGATED CO-COMMISSIONING,HANDSWORTH MEDICAL PRACTICE SHEFFIELD,36829955,1619.69,S13 9BZ
Department of Health,NHS Sheffield CCG,31/05/2021,C&M-GMS Prem Notional Rent,PRC DELEGATED CO-COMMISSIONING,HANDSWORTH MEDICAL PRACTICE SHEFFIELD,36829955,3321.66,S13 9BZ
Department of Health,NHS Sheffield CCG,31/05/2021,C&M-GMS Prof Fees Prescribing,PRC DELEGATED CO-COMMISSIONING,HANDSWORTH MEDICAL PRACTICE SHEFFIELD,36829955,181.49,S13 9BZ
Department of Health,NHS Sheffield CCG,31/05/2021,C&M-GMS QOF Aspiration,PRC DELEGATED CO-COMMISSIONING,HANDSWORTH MEDICAL PRACTICE SHEFFIELD,36829955,8785.69,S13 9BZ
Department of Health,NHS Sheffield CCG,31/05/2021,C&M-GMS Cost of Drugs -Prescribing,LOCAL ENHANCED SERVICES,GRENOSIDE SURGERY,36829957,1308.97,S35 8NX
Department of Health,NHS Sheffield CCG,31/05/2021,C&M-GMS Global Sum,PRC DELEGATED CO-COMMISSIONING,GRENOSIDE SURGERY,36829957,65655.08,S35 8NX
Department of Health,NHS Sheffield CCG,31/05/2021,C&M-GMS PCN DES Participation,PRC DELEGATED CO-COMMISSIONING,GRENOSIDE SURGERY,36829957,1250.62,S35 8NX
Department of Health,NHS Sheffield CCG,31/05/2021,C&M-GMS PCO Other,PRC DELEGATED CO-COMMISSIONING,GRENOSIDE SURGERY,36829957,492.7,S35 8NX
Department of Health,NHS Sheffield CCG,31/05/2021,C&M-GMS Prem Notional Rent,PRC DELEGATED CO-COMMISSIONING,GRENOSIDE SURGERY,36829957,8110.42,S35 8NX
Department of Health,NHS Sheffield CCG,31/05/2021,C&M-GMS Prem Rates,PRC DELEGATED CO-COMMISSIONING,GRENOSIDE SURGERY,36829957,1622,S35 8NX
Department of Health,NHS Sheffield CCG,31/05/2021,C&M-GMS Prem Water Rates,PRC DELEGATED CO-COMMISSIONING,GRENOSIDE SURGERY,36829957,110.44,S35 8NX
Department of Health,NHS Sheffield CCG,31/05/2021,C&M-GMS Prof Fees Prescribing,PRC DELEGATED CO-COMMISSIONING,GRENOSIDE SURGERY,36829957,74.74,S35 8NX
Department of Health,NHS Sheffield CCG,31/05/2021,C&M-GMS QOF Aspiration,PRC DELEGATED CO-COMMISSIONING,GRENOSIDE SURGERY,36829957,6590.45,S35 8NX
Department of Health,NHS Sheffield CCG,31/05/2021,C&M-GMS DES Learn Dsblty Hlth Chk,PRC DELEGATED CO-COMMISSIONING,GREYSTONES MEDICAL CENTRE,36829959,280,S11 7BJ
Department of Health,NHS Sheffield CCG,31/05/2021,C&M-GMS Global Sum,PRC DELEGATED CO-COMMISSIONING,GREYSTONES MEDICAL CENTRE,36829959,21394.6,S11 7BJ
Department of Health,NHS Sheffield CCG,31/05/2021,C&M-GMS PCN DES Participation,PRC DELEGATED CO-COMMISSIONING,GREYSTONES MEDICAL CENTRE,36829959,403.29,S11 7BJ
Department of Health,NHS Sheffield CCG,31/05/2021,C&M-GMS PCO Other,PRC DELEGATED CO-COMMISSIONING,GREYSTONES MEDICAL CENTRE,36829959,526,S11 7BJ
Department of Health,NHS Sheffield CCG,31/05/2021,C&M-GMS Prem Notional Rent,PRC DELEGATED CO-COMMISSIONING,GREYSTONES MEDICAL CENTRE,36829959,2885.42,S11 7BJ
Department of Health,NHS Sheffield CCG,31/05/2021,C&M-GMS Prem Rates,PRC DELEGATED CO-COMMISSIONING,GREYSTONES MEDICAL CENTRE,36829959,426,S11 7BJ
Department of Health,NHS Sheffield CCG,31/05/2021,C&M-GMS QOF Aspiration,PRC DELEGATED CO-COMMISSIONING,GREYSTONES MEDICAL CENTRE,36829959,2488.59,S11 7BJ
Department of Health,NHS Sheffield CCG,31/05/2021,C&M-GMS Cost of Drugs -Prescribing,LOCAL ENHANCED SERVICES,HEELEY GREEN SURGERY,36829961,410.61,S2 3AJ
Department of Health,NHS Sheffield CCG,31/05/2021,C&M-GMS DES Learn Dsblty Hlth Chk,PRC DELEGATED CO-COMMISSIONING,HEELEY GREEN SURGERY,36829961,2240,S2 3AJ
Department of Health,NHS Sheffield CCG,31/05/2021,C&M-GMS Global Sum,PRC DELEGATED CO-COMMISSIONING,HEELEY GREEN SURGERY,36829961,44606.18,S2 3AJ
Department of Health,NHS Sheffield CCG,31/05/2021,C&M-GMS PCN DES Participation,PRC DELEGATED CO-COMMISSIONING,HEELEY GREEN SURGERY,36829961,848.8,S2 3AJ
Department of Health,NHS Sheffield CCG,31/05/2021,C&M-GMS PCO Other,PRC DELEGATED CO-COMMISSIONING,HEELEY GREEN SURGERY,36829961,3819,S2 3AJ
Department of Health,NHS Sheffield CCG,31/05/2021,C&M-GMS Prem Notional Rent,PRC DELEGATED CO-COMMISSIONING,HEELEY GREEN SURGERY,36829961,3254.17,S2 3AJ
Department of Health,NHS Sheffield CCG,31/05/2021,C&M-GMS Prof Fees Prescribing,PRC DELEGATED CO-COMMISSIONING,HEELEY GREEN SURGERY,36829961,66.72,S2 3AJ
Department of Health,NHS Sheffield CCG,31/05/2021,C&M-GMS QOF Aspiration,PRC DELEGATED CO-COMMISSIONING,HEELEY GREEN SURGERY,36829961,4679.85,S2 3AJ
Department of Health,NHS Sheffield CCG,31/05/2021,C&M-GMS Cost of Drugs -Prescribing,LOCAL ENHANCED SERVICES,HOLLIES MEDICAL CENTRE,36829963,359.17,S11 9AL
Department of Health,NHS Sheffield CCG,31/05/2021,C&M-GMS DES Learn Dsblty Hlth Chk,PRC DELEGATED CO-COMMISSIONING,HOLLIES MEDICAL CENTRE,36829963,1960,S11 9AL
Department of Health,NHS Sheffield CCG,31/05/2021,C&M-GMS Global Sum,PRC DELEGATED CO-COMMISSIONING,HOLLIES MEDICAL CENTRE,36829963,67443.78,S11 9AL
Department of Health,NHS Sheffield CCG,31/05/2021,C&M-GMS PCN DES Participation,PRC DELEGATED CO-COMMISSIONING,HOLLIES MEDICAL CENTRE,36829963,1270.72,S11 9AL
Department of Health,NHS Sheffield CCG,31/05/2021,C&M-GMS Prem Notional Rent,PRC DELEGATED CO-COMMISSIONING,HOLLIES MEDICAL CENTRE,36829963,3358.33,S11 9AL
Department of Health,NHS Sheffield CCG,31/05/2021,C&M-GMS Prof Fees Prescribing,PRC DELEGATED CO-COMMISSIONING,HOLLIES MEDICAL CENTRE,36829963,69.4,S11 9AL
Department of Health,NHS Sheffield CCG,31/05/2021,C&M-GMS QOF Aspiration,PRC DELEGATED CO-COMMISSIONING,HOLLIES MEDICAL CENTRE,36829963,8186.06,S11 9AL
Department of Health,NHS Sheffield CCG,31/05/2021,C&M-GMS Cost of Drugs -Prescribing,LOCAL ENHANCED SERVICES,MEDICAL CENTRE CRYSTAL PEAKS,36829968,726.35,S20 7HZ
Department of Health,NHS Sheffield CCG,31/05/2021,C&M-GMS Global Sum,PRC DELEGATED CO-COMMISSIONING,MEDICAL CENTRE CRYSTAL PEAKS,36829968,50958.49,S20 7HZ
Department of Health,NHS Sheffield CCG,31/05/2021,C&M-GMS PCN DES Participation,PRC DELEGATED CO-COMMISSIONING,MEDICAL CENTRE CRYSTAL PEAKS,36829968,978.29,S20 7HZ
Department of Health,NHS Sheffield CCG,31/05/2021,C&M-GMS PCO Locum Sickness,PRC DELEGATED CO-COMMISSIONING,MEDICAL CENTRE CRYSTAL PEAKS,36829968,914.88,S20 7HZ
Department of Health,NHS Sheffield CCG,31/05/2021,C&M-GMS PCO Other,PRC DELEGATED CO-COMMISSIONING,MEDICAL CENTRE CRYSTAL PEAKS,36829968,861.6,S20 7HZ
Department of Health,NHS Sheffield CCG,31/05/2021,C&M-GMS Prem Notional Rent,PRC DELEGATED CO-COMMISSIONING,MEDICAL CENTRE CRYSTAL PEAKS,36829968,270,S20 7HZ
Department of Health,NHS Sheffield CCG,31/05/2021,C&M-GMS Prem Rates,PRC DELEGATED CO-COMMISSIONING,MEDICAL CENTRE CRYSTAL PEAKS,36829968,1073,S20 7HZ
Department of Health,NHS Sheffield CCG,31/05/2021,C&M-GMS Prof Fees Prescribing,PRC DELEGATED CO-COMMISSIONING,MEDICAL CENTRE CRYSTAL PEAKS,36829968,427.04,S20 7HZ
Department of Health,NHS Sheffield CCG,31/05/2021,C&M-GMS QOF Aspiration,PRC DELEGATED CO-COMMISSIONING,MEDICAL CENTRE CRYSTAL PEAKS,36829968,7126.23,S20 7HZ
Department of Health,NHS Sheffield CCG,31/05/2021,C&M-GMS Global Sum,PRC DELEGATED CO-COMMISSIONING,MATHEWS PRACTICE,36829972,59365.24,S2 4UJ
Department of Health,NHS Sheffield CCG,31/05/2021,C&M-GMS PCN DES Participation,PRC DELEGATED CO-COMMISSIONING,MATHEWS PRACTICE,36829972,1147.05,S2 4UJ
Department of Health,NHS Sheffield CCG,31/05/2021,C&M-GMS Prem Rates,PRC DELEGATED CO-COMMISSIONING,MATHEWS PRACTICE,36829972,1466,S2 4UJ
Department of Health,NHS Sheffield CCG,31/05/2021,C&M-GMS QOF Aspiration,PRC DELEGATED CO-COMMISSIONING,MATHEWS PRACTICE,36829972,6863.73,S2 4UJ
Department of Health,NHS Sheffield CCG,31/05/2021,C&M-GMS Cost of Drugs -Prescribing,LOCAL ENHANCED SERVICES,MILL ROAD SURGERY SHEFFIELD,36829975,1635.61,S35 9XQ
Department of Health,NHS Sheffield CCG,31/05/2021,C&M-GMS DES Learn Dsblty Hlth Chk,PRC DELEGATED CO-COMMISSIONING,MILL ROAD SURGERY SHEFFIELD,36829975,2800,S35 9XQ
Department of Health,NHS Sheffield CCG,31/05/2021,C&M-GMS Global Sum,PRC DELEGATED CO-COMMISSIONING,MILL ROAD SURGERY SHEFFIELD,36829975,44036.47,S35 9XQ
Department of Health,NHS Sheffield CCG,31/05/2021,C&M-GMS PCN DES Participation,PRC DELEGATED CO-COMMISSIONING,MILL ROAD SURGERY SHEFFIELD,36829975,838.81,S35 9XQ
Department of Health,NHS Sheffield CCG,31/05/2021,C&M-GMS PCO Other,PRC DELEGATED CO-COMMISSIONING,MILL ROAD SURGERY SHEFFIELD,36829975,701.4,S35 9XQ
Department of Health,NHS Sheffield CCG,31/05/2021,C&M-GMS Prem Notional Rent,PRC DELEGATED CO-COMMISSIONING,MILL ROAD SURGERY SHEFFIELD,36829975,4593.33,S35 9XQ
Department of Health,NHS Sheffield CCG,31/05/2021,C&M-GMS Prem Rates,PRC DELEGATED CO-COMMISSIONING,MILL ROAD SURGERY SHEFFIELD,36829975,1344.5,S35 9XQ
Department of Health,NHS Sheffield CCG,31/05/2021,C&M-GMS Prof Fees Prescribing,PRC DELEGATED CO-COMMISSIONING,MILL ROAD SURGERY SHEFFIELD,36829975,85.41,S35 9XQ
Department of Health,NHS Sheffield CCG,31/05/2021,C&M-GMS QOF Aspiration,PRC DELEGATED CO-COMMISSIONING,MILL ROAD SURGERY SHEFFIELD,36829975,5366.3,S35 9XQ
Department of Health,NHS Sheffield CCG,31/05/2021,C&M-GMS Cost of Drugs -Prescribing,LOCAL ENHANCED SERVICES,NORFOLK PARK HEALTH CENTRE,36829980,687.08,S2 3TA
Department of Health,NHS Sheffield CCG,31/05/2021,C&M-GMS DES Learn Dsblty Hlth Chk,PRC DELEGATED CO-COMMISSIONING,NORFOLK PARK HEALTH CENTRE,36829980,3780,S2 3TA
Department of Health,NHS Sheffield CCG,31/05/2021,C&M-GMS Global Sum,PRC DELEGATED CO-COMMISSIONING,NORFOLK PARK HEALTH CENTRE,36829980,44219.75,S2 3TA
Department of Health,NHS Sheffield CCG,31/05/2021,C&M-GMS PCN DES Participation,PRC DELEGATED CO-COMMISSIONING,NORFOLK PARK HEALTH CENTRE,36829980,820.08,S2 3TA
Department of Health,NHS Sheffield CCG,31/05/2021,C&M-GMS Prem Healthcentre Rent,PRC DELEGATED CO-COMMISSIONING,NORFOLK PARK HEALTH CENTRE,36829980,25249.98,S2 3TA
Department of Health,NHS Sheffield CCG,31/05/2021,C&M-GMS Prof Fees Prescribing,PRC DELEGATED CO-COMMISSIONING,NORFOLK PARK HEALTH CENTRE,36829980,181.49,S2 3TA
Department of Health,NHS Sheffield CCG,31/05/2021,C&M-GMS QOF Aspiration,PRC DELEGATED CO-COMMISSIONING,NORFOLK PARK HEALTH CENTRE,36829980,4434.09,S2 3TA
Department of Health,NHS Sheffield CCG,31/05/2021,C&M-GMS Cost of Drugs -Prescribing,LOCAL ENHANCED SERVICES,NORWOOD MEDICAL CENTRE SHEFFIELD,36829983,198.95,S5 7HD
Department of Health,NHS Sheffield CCG,31/05/2021,C&M-GMS DES Learn Dsblty Hlth Chk,PRC DELEGATED CO-COMMISSIONING,NORWOOD MEDICAL CENTRE SHEFFIELD,36829983,4620,S5 7HD
Department of Health,NHS Sheffield CCG,31/05/2021,C&M-GMS Global Sum,PRC DELEGATED CO-COMMISSIONING,NORWOOD MEDICAL CENTRE SHEFFIELD,36829983,69646.96,S5 7HD
Department of Health,NHS Sheffield CCG,31/05/2021,C&M-GMS PCN DES Participation,PRC DELEGATED CO-COMMISSIONING,NORWOOD MEDICAL CENTRE SHEFFIELD,36829983,1332.45,S5 7HD
Department of Health,NHS Sheffield CCG,31/05/2021,C&M-GMS PCO Other,PRC DELEGATED CO-COMMISSIONING,NORWOOD MEDICAL CENTRE SHEFFIELD,36829983,1031.8,S5 7HD
Department of Health,NHS Sheffield CCG,31/05/2021,C&M-GMS Prem Notional Rent,PRC DELEGATED CO-COMMISSIONING,NORWOOD MEDICAL CENTRE SHEFFIELD,36829983,5187.5,S5 7HD
Department of Health,NHS Sheffield CCG,31/05/2021,C&M-GMS Prof Fees Prescribing,PRC DELEGATED CO-COMMISSIONING,NORWOOD MEDICAL CENTRE SHEFFIELD,36829983,106.77,S5 7HD
Department of Health,NHS Sheffield CCG,31/05/2021,C&M-GMS QOF Aspiration,PRC DELEGATED CO-COMMISSIONING,NORWOOD MEDICAL CENTRE SHEFFIELD,36829983,8469.31,S5 7HD
Department of Health,NHS Sheffield CCG,31/05/2021,C&M-GMS Cost of Drugs -Dispensing,LOCAL ENHANCED SERVICES,OUGHTIBRIDGE SURGERY,36829987,35077.06,S35 0FW
Department of Health,NHS Sheffield CCG,31/05/2021,C&M-GMS DES Learn Dsblty Hlth Chk,PRC DELEGATED CO-COMMISSIONING,OUGHTIBRIDGE SURGERY,36829987,1540,S35 0FW
Department of Health,NHS Sheffield CCG,31/05/2021,C&M-GMS Global Sum,PRC DELEGATED CO-COMMISSIONING,OUGHTIBRIDGE SURGERY,36829987,46639.68,S35 0FW
Department of Health,NHS Sheffield CCG,31/05/2021,C&M-GMS PCN DES Participation,PRC DELEGATED CO-COMMISSIONING,OUGHTIBRIDGE SURGERY,36829987,886,S35 0FW
Department of Health,NHS Sheffield CCG,31/05/2021,C&M-GMS PCO Other,PRC DELEGATED CO-COMMISSIONING,OUGHTIBRIDGE SURGERY,36829987,3779,S35 0FW
Department of Health,NHS Sheffield CCG,31/05/2021,C&M-GMS Prem Notional Rent,PRC DELEGATED CO-COMMISSIONING,OUGHTIBRIDGE SURGERY,36829987,4064.58,S35 0FW
Department of Health,NHS Sheffield CCG,31/05/2021,C&M-GMS Prem Rates,PRC DELEGATED CO-COMMISSIONING,OUGHTIBRIDGE SURGERY,36829987,511,S35 0FW
Department of Health,NHS Sheffield CCG,31/05/2021,C&M-GMS Prof Fees Dispensing,PRC DELEGATED CO-COMMISSIONING,OUGHTIBRIDGE SURGERY,36829987,5523.13,S35 0FW
Department of Health,NHS Sheffield CCG,31/05/2021,C&M-GMS PrscrptnChrgsColl&RmttdbyGP,LOCAL ENHANCED SERVICES,OUGHTIBRIDGE SURGERY,36829987,411.75,S35 0FW
Department of Health,NHS Sheffield CCG,31/05/2021,C&M-GMS QOF Aspiration,PRC DELEGATED CO-COMMISSIONING,OUGHTIBRIDGE SURGERY,36829987,4819.4,S35 0FW
Department of Health,NHS Sheffield CCG,31/05/2021,C&M-GMS Cost of Drugs -Prescribing,LOCAL ENHANCED SERVICES,SHARROW LANE MEDICAL CENTRE,36829991,82.01,S11 8AN
Department of Health,NHS Sheffield CCG,31/05/2021,C&M-GMS DES Learn Dsblty Hlth Chk,PRC DELEGATED CO-COMMISSIONING,SHARROW LANE MEDICAL CENTRE,36829991,2380,S11 8AN
Department of Health,NHS Sheffield CCG,31/05/2021,C&M-GMS Global Sum,PRC DELEGATED CO-COMMISSIONING,SHARROW LANE MEDICAL CENTRE,36829991,26264.95,S11 8AN
Department of Health,NHS Sheffield CCG,31/05/2021,C&M-GMS PCN DES Participation,PRC DELEGATED CO-COMMISSIONING,SHARROW LANE MEDICAL CENTRE,36829991,500.68,S11 8AN
Department of Health,NHS Sheffield CCG,31/05/2021,C&M-GMS Prem Notional Rent,PRC DELEGATED CO-COMMISSIONING,SHARROW LANE MEDICAL CENTRE,36829991,2741.67,S11 8AN
Department of Health,NHS Sheffield CCG,31/05/2021,C&M-GMS Prof Fees Prescribing,PRC DELEGATED CO-COMMISSIONING,SHARROW LANE MEDICAL CENTRE,36829991,37.37,S11 8AN
Department of Health,NHS Sheffield CCG,31/05/2021,C&M-GMS QOF Aspiration,PRC DELEGATED CO-COMMISSIONING,SHARROW LANE MEDICAL CENTRE,36829991,2983.54,S11 8AN
Department of Health,NHS Sheffield CCG,31/05/2021,C&M-GMS GP Statutory Levy,PRC DELEGATED CO-COMMISSIONING,SHIREGREEN MEDICAL CENTRE,36829998,-267.3,S5 0RG
Department of Health,NHS Sheffield CCG,31/05/2021,C&M-GMS Cost of Drugs -Prescribing,LOCAL ENHANCED SERVICES,SHIREGREEN MEDICAL CENTRE,36829999,269.12,S5 0RG
Department of Health,NHS Sheffield CCG,31/05/2021,C&M-GMS DES Learn Dsblty Hlth Chk,PRC DELEGATED CO-COMMISSIONING,SHIREGREEN MEDICAL CENTRE,36829999,3500,S5 0RG
Department of Health,NHS Sheffield CCG,31/05/2021,C&M-GMS Global Sum,PRC DELEGATED CO-COMMISSIONING,SHIREGREEN MEDICAL CENTRE,36829999,60303.87,S5 0RG
Department of Health,NHS Sheffield CCG,31/05/2021,C&M-GMS PCN DES Participation,PRC DELEGATED CO-COMMISSIONING,SHIREGREEN MEDICAL CENTRE,36829999,1161.13,S5 0RG
Department of Health,NHS Sheffield CCG,31/05/2021,C&M-GMS PCO Other,PRC DELEGATED CO-COMMISSIONING,SHIREGREEN MEDICAL CENTRE,36829999,980.2,S5 0RG
Department of Health,NHS Sheffield CCG,31/05/2021,C&M-GMS Prem Cost Rent,PRC DELEGATED CO-COMMISSIONING,SHIREGREEN MEDICAL CENTRE,36829999,1792.33,S5 0RG
Department of Health,NHS Sheffield CCG,31/05/2021,C&M-GMS Prem Notional Rent,PRC DELEGATED CO-COMMISSIONING,SHIREGREEN MEDICAL CENTRE,36829999,5375,S5 0RG
Department of Health,NHS Sheffield CCG,31/05/2021,C&M-GMS Prem Rates,PRC DELEGATED CO-COMMISSIONING,SHIREGREEN MEDICAL CENTRE,36829999,3743.55,S5 0RG
Department of Health,NHS Sheffield CCG,31/05/2021,C&M-GMS Prof Fees Prescribing,PRC DELEGATED CO-COMMISSIONING,SHIREGREEN MEDICAL CENTRE,36829999,154.8,S5 0RG
Department of Health,NHS Sheffield CCG,31/05/2021,C&M-GMS QOF Aspiration,PRC DELEGATED CO-COMMISSIONING,SHIREGREEN MEDICAL CENTRE,36829999,7267.46,S5 0RG
Department of Health,NHS Sheffield CCG,31/05/2021,C&M-GMS Cost of Drugs -Prescribing,LOCAL ENHANCED SERVICES,STONECROFT MEDICAL CENTRE,36830001,644.82,S12 2LJ
Department of Health,NHS Sheffield CCG,31/05/2021,C&M-GMS DES Learn Dsblty Hlth Chk,PRC DELEGATED CO-COMMISSIONING,STONECROFT MEDICAL CENTRE,36830001,2100,S12 2LJ
Department of Health,NHS Sheffield CCG,31/05/2021,C&M-GMS Global Sum,PRC DELEGATED CO-COMMISSIONING,STONECROFT MEDICAL CENTRE,36830001,35459.82,S12 2LJ
Department of Health,NHS Sheffield CCG,31/05/2021,C&M-GMS PCN DES Participation,PRC DELEGATED CO-COMMISSIONING,STONECROFT MEDICAL CENTRE,36830001,680.92,S12 2LJ
Department of Health,NHS Sheffield CCG,31/05/2021,C&M-GMS PCO Other,PRC DELEGATED CO-COMMISSIONING,STONECROFT MEDICAL CENTRE,36830001,580.6,S12 2LJ
Department of Health,NHS Sheffield CCG,31/05/2021,C&M-GMS Prem Notional Rent,PRC DELEGATED CO-COMMISSIONING,STONECROFT MEDICAL CENTRE,36830001,2808.33,S12 2LJ
Department of Health,NHS Sheffield CCG,31/05/2021,C&M-GMS Prem Rates,PRC DELEGATED CO-COMMISSIONING,STONECROFT MEDICAL CENTRE,36830001,1235,S12 2LJ
Department of Health,NHS Sheffield CCG,31/05/2021,C&M-GMS Prof Fees Prescribing,PRC DELEGATED CO-COMMISSIONING,STONECROFT MEDICAL CENTRE,36830001,189.5,S12 2LJ
Department of Health,NHS Sheffield CCG,31/05/2021,C&M-GMS QOF Aspiration,PRC DELEGATED CO-COMMISSIONING,STONECROFT MEDICAL CENTRE,36830001,4286.72,S12 2LJ
Department of Health,NHS Sheffield CCG,31/05/2021,C&M-GMS Cost of Drugs -Prescribing,LOCAL ENHANCED SERVICES,STANNINGTON MEDICAL CENTRE,36830003,38.68,S6 6BX
Department of Health,NHS Sheffield CCG,31/05/2021,C&M-GMS Global Sum,PRC DELEGATED CO-COMMISSIONING,STANNINGTON MEDICAL CENTRE,36830003,27338.07,S6 6BX
Department of Health,NHS Sheffield CCG,31/05/2021,C&M-GMS Prem Notional Rent,PRC DELEGATED CO-COMMISSIONING,STANNINGTON MEDICAL CENTRE,36830003,2575,S6 6BX
Department of Health,NHS Sheffield CCG,31/05/2021,C&M-GMS Prem Rates,PRC DELEGATED CO-COMMISSIONING,STANNINGTON MEDICAL CENTRE,36830003,938.6,S6 6BX
Department of Health,NHS Sheffield CCG,31/05/2021,C&M-GMS Prof Fees Prescribing,PRC DELEGATED CO-COMMISSIONING,STANNINGTON MEDICAL CENTRE,36830003,10.68,S6 6BX
Department of Health,NHS Sheffield CCG,31/05/2021,C&M-GMS QOF Aspiration,PRC DELEGATED CO-COMMISSIONING,STANNINGTON MEDICAL CENTRE,36830003,3194.14,S6 6BX
Department of Health,NHS Sheffield CCG,31/05/2021,C&M-GMS Cost of Drugs -Prescribing,LOCAL ENHANCED SERVICES,TOTLEY RISE MEDICAL CENTRE,36830005,126.58,S17 4DQ
Department of Health,NHS Sheffield CCG,31/05/2021,C&M-GMS DES Learn Dsblty Hlth Chk,PRC DELEGATED CO-COMMISSIONING,TOTLEY RISE MEDICAL CENTRE,36830005,140,S17 4DQ
Department of Health,NHS Sheffield CCG,31/05/2021,C&M-GMS Global Sum,PRC DELEGATED CO-COMMISSIONING,TOTLEY RISE MEDICAL CENTRE,36830005,28497.06,S17 4DQ
Department of Health,NHS Sheffield CCG,31/05/2021,C&M-GMS PCN DES Participation,PRC DELEGATED CO-COMMISSIONING,TOTLEY RISE MEDICAL CENTRE,36830005,990.96,S17 4DQ
Department of Health,NHS Sheffield CCG,31/05/2021,C&M-GMS Prem Notional Rent,PRC DELEGATED CO-COMMISSIONING,TOTLEY RISE MEDICAL CENTRE,36830005,3770.84,S17 4DQ
Department of Health,NHS Sheffield CCG,31/05/2021,C&M-GMS Prem Rates,PRC DELEGATED CO-COMMISSIONING,TOTLEY RISE MEDICAL CENTRE,36830005,1409,S17 4DQ
Department of Health,NHS Sheffield CCG,31/05/2021,C&M-GMS Prem Water Rates,PRC DELEGATED CO-COMMISSIONING,TOTLEY RISE MEDICAL CENTRE,36830005,194.9,S17 4DQ
Department of Health,NHS Sheffield CCG,31/05/2021,C&M-GMS Prof Fees Prescribing,PRC DELEGATED CO-COMMISSIONING,TOTLEY RISE MEDICAL CENTRE,36830005,120.11,S17 4DQ
Department of Health,NHS Sheffield CCG,31/05/2021,C&M-GMS QOF Aspiration,PRC DELEGATED CO-COMMISSIONING,TOTLEY RISE MEDICAL CENTRE,36830005,5984.27,S17 4DQ
Department of Health,NHS Sheffield CCG,31/05/2021,C&M-GMS Cost of Drugs -Prescribing,LOCAL ENHANCED SERVICES,TRAMWAYS MEDICAL CENTRE,36830007,2166.79,S6 4JQ
Department of Health,NHS Sheffield CCG,31/05/2021,C&M-GMS Global Sum,PRC DELEGATED CO-COMMISSIONING,TRAMWAYS MEDICAL CENTRE,36830007,65868.89,S6 4JQ
Department of Health,NHS Sheffield CCG,31/05/2021,C&M-GMS PCN DES Participation,PRC DELEGATED CO-COMMISSIONING,TRAMWAYS MEDICAL CENTRE,36830007,1255.37,S6 4JQ
Department of Health,NHS Sheffield CCG,31/05/2021,C&M-GMS PCO Other,PRC DELEGATED CO-COMMISSIONING,TRAMWAYS MEDICAL CENTRE,36830007,1054.4,S6 4JQ
Department of Health,NHS Sheffield CCG,31/05/2021,C&M-GMS Prem Cost Rent,PRC DELEGATED CO-COMMISSIONING,TRAMWAYS MEDICAL CENTRE,36830007,4012.75,S6 4JQ
Department of Health,NHS Sheffield CCG,31/05/2021,C&M-GMS Prem Rates,PRC DELEGATED CO-COMMISSIONING,TRAMWAYS MEDICAL CENTRE,36830007,1649.5,S6 4JQ
Department of Health,NHS Sheffield CCG,31/05/2021,C&M-GMS Prem Water Rates,PRC DELEGATED CO-COMMISSIONING,TRAMWAYS MEDICAL CENTRE,36830007,272.5,S6 4JQ
Department of Health,NHS Sheffield CCG,31/05/2021,C&M-GMS Prof Fees Prescribing,PRC DELEGATED CO-COMMISSIONING,TRAMWAYS MEDICAL CENTRE,36830007,141.46,S6 4JQ
Department of Health,NHS Sheffield CCG,31/05/2021,C&M-GMS QOF Aspiration,PRC DELEGATED CO-COMMISSIONING,TRAMWAYS MEDICAL CENTRE,36830007,6868.53,S6 4JQ
Department of Health,NHS Sheffield CCG,31/05/2021,C&M-GMS Cost of Drugs -Prescribing,LOCAL ENHANCED SERVICES,UPPERTHORPE MEDICAL CENTRE,36830010,1517.89,S6 3FT
Department of Health,NHS Sheffield CCG,31/05/2021,C&M-GMS DES Learn Dsblty Hlth Chk,PRC DELEGATED CO-COMMISSIONING,UPPERTHORPE MEDICAL CENTRE,36830010,1400,S6 3FT
Department of Health,NHS Sheffield CCG,31/05/2021,C&M-GMS Global Sum,PRC DELEGATED CO-COMMISSIONING,UPPERTHORPE MEDICAL CENTRE,36830010,93186.84,S6 3FT
Department of Health,NHS Sheffield CCG,31/05/2021,C&M-GMS PCN DES Participation,PRC DELEGATED CO-COMMISSIONING,UPPERTHORPE MEDICAL CENTRE,36830010,1770.85,S6 3FT
Department of Health,NHS Sheffield CCG,31/05/2021,C&M-GMS Prem Actual Rent,PRC DELEGATED CO-COMMISSIONING,UPPERTHORPE MEDICAL CENTRE,36830010,419.5,S6 3FT
Department of Health,NHS Sheffield CCG,31/05/2021,C&M-GMS Prem Notional Rent,PRC DELEGATED CO-COMMISSIONING,UPPERTHORPE MEDICAL CENTRE,36830010,2128.33,S6 3FT
Department of Health,NHS Sheffield CCG,31/05/2021,C&M-GMS Prem Rates,PRC DELEGATED CO-COMMISSIONING,UPPERTHORPE MEDICAL CENTRE,36830010,2121,S6 3FT
Department of Health,NHS Sheffield CCG,31/05/2021,C&M-GMS Prem Water Rates,PRC DELEGATED CO-COMMISSIONING,UPPERTHORPE MEDICAL CENTRE,36830010,150.89,S6 3FT
Department of Health,NHS Sheffield CCG,31/05/2021,C&M-GMS Prof Fees Prescribing,PRC DELEGATED CO-COMMISSIONING,UPPERTHORPE MEDICAL CENTRE,36830010,152.14,S6 3FT
Department of Health,NHS Sheffield CCG,31/05/2021,C&M-GMS QOF Aspiration,PRC DELEGATED CO-COMMISSIONING,UPPERTHORPE MEDICAL CENTRE,36830010,10749.32,S6 3FT
Department of Health,NHS Sheffield CCG,31/05/2021,C&M-GMS Cost of Drugs -Prescribing,LOCAL ENHANCED SERVICES,WALKLEY HOUSE MEDICAL CENTRE,36830015,850.56,S6 3TN
Department of Health,NHS Sheffield CCG,31/05/2021,C&M-GMS DES Learn Dsblty Hlth Chk,PRC DELEGATED CO-COMMISSIONING,WALKLEY HOUSE MEDICAL CENTRE,36830015,4480,S6 3TN
Department of Health,NHS Sheffield CCG,31/05/2021,C&M-GMS Global Sum,PRC DELEGATED CO-COMMISSIONING,WALKLEY HOUSE MEDICAL CENTRE,36830015,93663.02,S6 3TN
Department of Health,NHS Sheffield CCG,31/05/2021,C&M-GMS PCN DES Participation,PRC DELEGATED CO-COMMISSIONING,WALKLEY HOUSE MEDICAL CENTRE,36830015,1785.69,S6 3TN
Department of Health,NHS Sheffield CCG,31/05/2021,C&M-GMS Prem Notional Rent,PRC DELEGATED CO-COMMISSIONING,WALKLEY HOUSE MEDICAL CENTRE,36830015,5635.5,S6 3TN
Department of Health,NHS Sheffield CCG,31/05/2021,C&M-GMS Prem Rates,PRC DELEGATED CO-COMMISSIONING,WALKLEY HOUSE MEDICAL CENTRE,36830015,2598,S6 3TN
Department of Health,NHS Sheffield CCG,31/05/2021,C&M-GMS Prof Fees Prescribing,PRC DELEGATED CO-COMMISSIONING,WALKLEY HOUSE MEDICAL CENTRE,36830015,138.78,S6 3TN
Department of Health,NHS Sheffield CCG,31/05/2021,C&M-GMS QOF Aspiration,PRC DELEGATED CO-COMMISSIONING,WALKLEY HOUSE MEDICAL CENTRE,36830015,9796.01,S6 3TN
Department of Health,NHS Sheffield CCG,31/05/2021,Clinical&Medical-Voluntary Sector,CHILD AND ADOLESCENT MENTAL HEALTH,SHEFFIELD FUTURES,36849074,25600,S1 4GE
Department of Health,NHS Sheffield CCG,31/05/2021,C&M-GMS Cost of Drugs -Prescribing,LOCAL ENHANCED SERVICES,WHITE HOUSE SURGERY SHEFFIELD,36850409,230.16,S2 1SL
Department of Health,NHS Sheffield CCG,31/05/2021,C&M-GMS DES Learn Dsblty Hlth Chk,PRC DELEGATED CO-COMMISSIONING,WHITE HOUSE SURGERY SHEFFIELD,36850409,840,S2 1SL
Department of Health,NHS Sheffield CCG,31/05/2021,C&M-GMS Global Sum,PRC DELEGATED CO-COMMISSIONING,WHITE HOUSE SURGERY SHEFFIELD,36850409,57705.32,S2 1SL
Department of Health,NHS Sheffield CCG,31/05/2021,C&M-GMS PCN DES Participation,PRC DELEGATED CO-COMMISSIONING,WHITE HOUSE SURGERY SHEFFIELD,36850409,1090.83,S2 1SL
Department of Health,NHS Sheffield CCG,31/05/2021,C&M-GMS PCO Locum Sickness,PRC DELEGATED CO-COMMISSIONING,WHITE HOUSE SURGERY SHEFFIELD,36850409,2478.01,S2 1SL
Department of Health,NHS Sheffield CCG,31/05/2021,C&M-GMS PCO Other,PRC DELEGATED CO-COMMISSIONING,WHITE HOUSE SURGERY SHEFFIELD,36850409,4428,S2 1SL
Department of Health,NHS Sheffield CCG,31/05/2021,C&M-GMS Prem Notional Rent,PRC DELEGATED CO-COMMISSIONING,WHITE HOUSE SURGERY SHEFFIELD,36850409,9412.5,S2 1SL
Department of Health,NHS Sheffield CCG,31/05/2021,C&M-GMS Prem Rates,PRC DELEGATED CO-COMMISSIONING,WHITE HOUSE SURGERY SHEFFIELD,36850409,3265.75,S2 1SL
Department of Health,NHS Sheffield CCG,31/05/2021,C&M-GMS Prof Fees Prescribing,PRC DELEGATED CO-COMMISSIONING,WHITE HOUSE SURGERY SHEFFIELD,36850409,125.45,S2 1SL
Department of Health,NHS Sheffield CCG,31/05/2021,C&M-GMS QOF Aspiration,PRC DELEGATED CO-COMMISSIONING,WHITE HOUSE SURGERY SHEFFIELD,36850409,6776.17,S2 1SL
Department of Health,NHS Sheffield CCG,31/05/2021,Clinical&Medical-Voluntary Sector,HOSPICES,ST LUKES HOSPICE,36859622,66032.04,S11 9NE
Department of Health,NHS Sheffield CCG,31/05/2021,Soc Care-Support Prim Care,COMMUNITY SERVICES,SHEFFIELD CITY COUNCIL,36859624,1344000,S1 2HH
Department of Health,NHS Sheffield CCG,31/05/2021,Clinical&Medical-Independent Sector,Mental Health Services - S117 Mental Health,MOORVILLE RESIDENTIAL,36859625,35374.8,S10 5FA
Department of Health,NHS Sheffield CCG,31/05/2021,Cont Care-Learning Disab(<65),CHC ADULT FULLY FUNDED,MOORVILLE RESIDENTIAL,36859625,8875.8,S10 5FA
Department of Health,NHS Sheffield CCG,31/05/2021,Cont Care-Learning Disab(<65),CHC ADULT JOINT FUNDED,MOORVILLE RESIDENTIAL,36859625,4193.4,S10 5FA
Department of Health,NHS Sheffield CCG,31/05/2021,Cont Care-Mental Health (<65),CHC ADULT JOINT FUNDED,MOORVILLE RESIDENTIAL,36859625,489.9,S10 5FA
Department of Health,NHS Sheffield CCG,31/05/2021,C&M- PCN DES Nursing Associate,PRC DELEGATED CO-COMMISSIONING,PRIMARY CARE SHEFFIELD LTD,36859630,3966.3,S9 4EU
Department of Health,NHS Sheffield CCG,31/05/2021,C&M-GMS C&M-APMS PCN DES Physician Assoc,PRC DELEGATED CO-COMMISSIONING,PRIMARY CARE SHEFFIELD LTD,36859630,11811.01,S9 4EU
Department of Health,NHS Sheffield CCG,31/05/2021,C&M-GMS PCN DES Clin Pharmacist,PRC DELEGATED CO-COMMISSIONING,PRIMARY CARE SHEFFIELD LTD,36859630,18654.73,S9 4EU
Department of Health,NHS Sheffield CCG,31/05/2021,C&M-GMS PCN DES Physiotherapist,PRC DELEGATED CO-COMMISSIONING,PRIMARY CARE SHEFFIELD LTD,36859630,8732.5,S9 4EU
Department of Health,NHS Sheffield CCG,31/05/2021,C&M-GMS PCN DES Soc Prescribing,PRC DELEGATED CO-COMMISSIONING,PRIMARY CARE SHEFFIELD LTD,36859630,2717.68,S9 4EU
Department of Health,NHS Sheffield CCG,31/05/2021,Other Gen Supplies & Srv,BEREAVEMENT SERVICE,BARNSLEY HOSPITAL NHS FOUNDATION TRUST,36859632,128500,S75 2EP
Department of Health,NHS Sheffield CCG,31/05/2021,C&M- PCN DES CARE COORDINATOR,PRC DELEGATED CO-COMMISSIONING,PRIMARY CARE SHEFFIELD LTD,36873313,16253.73,S9 4EU
Department of Health,NHS Sheffield CCG,31/05/2021,C&M-GMS C&M-APMS PCN DES Physician Assoc,PRC DELEGATED CO-COMMISSIONING,PRIMARY CARE SHEFFIELD LTD,36873313,4266.35,S9 4EU
Department of Health,NHS Sheffield CCG,31/05/2021,C&M-GMS PCN DES Clin Pharmacist,PRC DELEGATED CO-COMMISSIONING,PRIMARY CARE SHEFFIELD LTD,36873313,10421.59,S9 4EU
Department of Health,NHS Sheffield CCG,31/05/2021,C&M-GMS PCN DES Physiotherapist,PRC DELEGATED CO-COMMISSIONING,PRIMARY CARE SHEFFIELD LTD,36873313,4667.08,S9 4EU
Department of Health,NHS Sheffield CCG,31/05/2021,C&M-GMS PCN DES Soc Prescribing,PRC DELEGATED CO-COMMISSIONING,PRIMARY CARE SHEFFIELD LTD,36873313,5258.69,S9 4EU
Department of Health,NHS Sheffield CCG,31/05/2021,C&M-PCN DES PHARMACY TECHNICIANS,PRC DELEGATED CO-COMMISSIONING,PRIMARY CARE SHEFFIELD LTD,36873313,2741.69,S9 4EU
Department of Health,NHS Sheffield CCG,31/05/2021,"Books, Journals & Subscr",COUNSELLING SERVICES,YORKSHIRE & HUMBER AHSN LTD,36884648,48994.8,WF4 3BA
Department of Health,NHS Sheffield CCG,31/05/2021,Clinical&Medical-Independent Sector,ACUTE COMMISSIONING,SPAMEDICA LTD,36884757,113320.97,M15 4SQ
